Workbook

Sheet MENU
L4: =+TABLAS!A68 -> 2-3-1-4-5-6-7-8-9-10-11-T
H27: CONTROL DE MESES
H29: =+TABLAS!A69 -> 2-3-1-4-5-6-7-8-9-10-11-T
C30: =+INFORME!G19 -> __ENE_NOV_2024

Sheet INFORME
B2: DIRECCION REGIONAL DE SALUD CUSCO
B3: DIRECCION EJECUTIVA DE INTELIGENCIA SANITARIA
B4: DIRECCION DE ESTADISTICA E INFORMATICA Y TELECOMUNICACIONES
B6: INFORME MENSUAL DE VIGILANCIA Y CONTROL VECTORIAL
B9: DIRESA | C9: CUSCO
B11: PROVINCIA | C11: =+TABLAS!O12 ->  | F11: EJECUTORA | H11: =+TABLAS!O14 -> 
B13: DISTRITO | C13: =+TABLAS!O13 -> 
B15: RED DE SALUD | C15: =+TABLAS!O9 -> 03 - LA CONVENCION | G15: AÑO | H15: =+TABLAS!J16 -> 2024
B17: MICRO RED | C17: =+TABLAS!O10 ->  | G17: MES | H17: =+TABLAS!N26 -> ENE - NOV | I17: =+TABLAS!N20 -> 11
B19: ESTABLECIMIENTO | C19: =+TABLAS!O11 ->  | G19: =IF(I17=1,MID(C19,1,9)&"_"&MID(C19,13,20)&"_"&MID(H17,1,3)&"_"&H15,MID(C19,1,9)&"_"&MID(C19,13,20)&"_"&MID(H17,1,3)&"_"&MID(H17,7,3)&"_"&H15) -> __ENE_NOV_2024
B23: POBLACION TOTAL | F23: POBLACION DE RIESGO DE BARTONELOSIS
B25: POBLACION DE RIESGO DE MALARIA | F25: POBLACION DE RIESGO DE FIEBRE AMARILLA
B27: POBLACION DE RIESGO DE LEISHMANIASIS | F27: POBLACION DE RIESGO DE TIFUS EXANTEMATICO
B29: POBLACION DE RIESGO DE DENGUE | F29: EXTENSION EN KM2 EN AREAS DE RIESGO
B32: SUBFINALIDAD: VIVIENDAS PROTEGIDAS DE LOS PRINCIPALES CONDICIONANTES DEL RIESGO EN LAS AREAS DE ALTO Y MUY ALTO RIESGO DE ENFERMEDADES METAXENICAS Y ZOONOSIS | F32: META ANUAL | G32: INFORMACION MENSUAL | J32: ACUMULADO
J33: Total | K33: %
B34: 1. Viviendas de áreas de alto y muy alto riesgo de transmisión de Malaria, con medidas de protección personal y familiar | H34: N° Mosquiteros | I34: N° Actividades
H35: =SUM(H36:H38) -> 0 | I35: =MAX(I36:I38) -> 0
B36: Viviendas sin Paredes | H36: =+GETPIVOTDATA(" BAS002",TABLAS!$A$49) -> 0 | I36: =+GETPIVOTDATA(" BAS001",TABLAS!$A$49) -> 0
B37: Viviendas con Paredes sin Ventanas | H37: =+GETPIVOTDATA(" BAS004",TABLAS!$A$49) -> 0 | I37: =+GETPIVOTDATA(" BAS003",TABLAS!$A$49) -> 0
B38: Viviendas con Paredes y Ventanas | H38: =+GETPIVOTDATA(" BAS006",TABLAS!$A$49) -> 0 | I38: =+GETPIVOTDATA(" BAS005",TABLAS!$A$49) -> 0
B39: 2. Vivienda en áreas de transmisión de Malaria con vigilancia entomológica | G39: =+G41 -> 4234 | H39: =+H41 -> 1533 | I39: =MAX(I41,I47) -> 1472
B40: CAPTURA DEL VECTOR ADULTO | G40: N° Anop Iden | H40: N° Viviendas | I40: N° Actividades
G41: =SUM(G42:G45) -> 4234 | H41: =MAX(H42:H45) -> 1533 | I41: =MAX(I42:I45) -> 1472
B42: Trampas Shanon Peridomiciliario | G42: =+GETPIVOTDATA(" BAS010",TABLAS!$A$49) -> 3605 | H42: =+GETPIVOTDATA(" BAS009",TABLAS!$A$49) -> 1533 | I42: =+GETPIVOTDATA(" BAS008",TABLAS!$A$49) -> 1472
B43: Captura Intradomiciliario | G43: =+GETPIVOTDATA(" BAS013",TABLAS!$A$49) -> 138 | H43: =+GETPIVOTDATA(" BAS012",TABLAS!$A$49) -> 41 | I43: =+GETPIVOTDATA(" BAS011",TABLAS!$A$49) -> 37
B44: Captura Peridomiciliario | G44: =+GETPIVOTDATA(" BAS016",TABLAS!$A$49) -> 435 | H44: =+GETPIVOTDATA(" BAS015",TABLAS!$A$49) -> 167 | I44: =+GETPIVOTDATA(" BAS014",TABLAS!$A$49) -> 152
B45: Captura Extradomiciliario | G45: =+GETPIVOTDATA(" BAS019",TABLAS!$A$49) -> 56 | H45: =+GETPIVOTDATA(" BAS018",TABLAS!$A$49) -> 6 | I45: =+GETPIVOTDATA(" BAS017",TABLAS!$A$49) -> 6
B46: VECTOR EN FASE LARVARIA | D46: DENSIDAD LARVARIA | G46: N° de DL | H46: N° Criaderos | I46: N° Actividades
G47: =SUM(G48:G53) -> 1502 | H47: =SUM(H48:H53) -> 5748 | I47: =MAX(I48:I53) -> 995
B48: CRIADERO PERMANENTE | D48: 0,00 - 4,99 | E48: Bajo | F48: (14) | G48: =+GETPIVOTDATA(" BAS023",TABLAS!$A$49) -> 995 | H48: =+GETPIVOTDATA(" BAS022",TABLAS!$A$49) -> 4658 | I48: =+GETPIVOTDATA(" BAS021",TABLAS!$A$49) -> 995
D49: 5,00 - 10,00 | E49: Medio | F49: (510) | G49: =+GETPIVOTDATA(" BAS026",TABLAS!$A$49) -> 0 | H49: =+GETPIVOTDATA(" BAS025",TABLAS!$A$49) -> 0 | I49: =+GETPIVOTDATA(" BAS024",TABLAS!$A$49) -> 0
D50: > 10,01 | E50: Alto | F50: (100) | G50: =+GETPIVOTDATA(" BAS029",TABLAS!$A$49) -> 0 | H50: =+GETPIVOTDATA(" BAS028",TABLAS!$A$49) -> 0 | I50: =+GETPIVOTDATA(" BAS027",TABLAS!$A$49) -> 0
B51: CRIADERO TEMPORALES | D51: 0,00 - 4,99 | E51: Bajo | F51: (14) | G51: =+GETPIVOTDATA(" BAS032",TABLAS!$A$49) -> 507 | H51: =+GETPIVOTDATA(" BAS031",TABLAS!$A$49) -> 1090 | I51: =+GETPIVOTDATA(" BAS030",TABLAS!$A$49) -> 507
D52: 5,00 - 10,00 | E52: Medio | F52: (510) | G52: =+GETPIVOTDATA(" BAS035",TABLAS!$A$49) -> 0 | H52: =+GETPIVOTDATA(" BAS034",TABLAS!$A$49) -> 0 | I52: =+GETPIVOTDATA(" BAS033",TABLAS!$A$49) -> 0
D53: > 10,01 | E53: Alto | F53: (100) | G53: =+GETPIVOTDATA(" BAS038",TABLAS!$A$49) -> 0 | H53: =+GETPIVOTDATA(" BAS037",TABLAS!$A$49) -> 0 | I53: =+GETPIVOTDATA(" BAS036",TABLAS!$A$49) -> 0
B54: 3. Vivienda , en áreas de alto y muy alto riesgo de transmisión de Malaria protegidas con plaguicidas | G54: N° Viv Asign | H54: N° Viv Interv | I54: N° Actividades
G55: 12 | H55: =+GETPIVOTDATA(" BAS040",TABLAS!$A$49) -> 0 | I55: =+GETPIVOTDATA(" BAS039",TABLAS!$A$49) -> 0
B56: 4. Viviendas en áreas de riesgo para Dengue con vigilancia entomológica con ovitrampas y larvitrampas | G56: Trampas (+) | H56: N° Trampas | I56: N° Actividades
G57: =SUM(G58:G59) -> 7604 | H57: =SUM(H58:H59) -> 1733 | I57: =MAX(I58:I59) -> 279
B58: LARVITRAMPA | G58: =+GETPIVOTDATA(" BAS043",TABLAS!$A$49) -> 1556 | H58: =+GETPIVOTDATA(" BAS042",TABLAS!$A$49) -> 362 | I58: =+GETPIVOTDATA(" BAS041",TABLAS!$A$49) -> 163
B59: OVITRAMPRA | G59: =+GETPIVOTDATA(" BAS046",TABLAS!$A$49) -> 6048 | H59: =+GETPIVOTDATA(" BAS045",TABLAS!$A$49) -> 1371 | I59: =+GETPIVOTDATA(" BAS044",TABLAS!$A$49) -> 279
B60: 5. Viviendas en escenario II y III de transmision de Dengue protegiadas con tratamiento focal y control fisico | H60: N° Viv Interv | I60: N° Actividades
H61: =SUM(H62:H64) -> 161906 | I61: =MAX(I62:I64) -> 1940
B62: CONTROL MECANICO (FISICO) | H62: =+GETPIVOTDATA(" BAS048",TABLAS!$A$49) -> 157944 | I62: =+GETPIVOTDATA(" BAS047",TABLAS!$A$49) -> 1940
B63: CONTROL QUIMICO | H63: =+GETPIVOTDATA(" BAS050",TABLAS!$A$49) -> 2818 | I63: =+GETPIVOTDATA(" BAS049",TABLAS!$A$49) -> 47
B64: CONTROL MECANICO-QUIMICO | H64: =+GETPIVOTDATA(" BAS052",TABLAS!$A$49) -> 1144 | I64: =+GETPIVOTDATA(" BAS051",TABLAS!$A$49) -> 39
B65: 6. Viviendas en escenario II y III de transmision de Dengue protegiadas con nebulizacion espacial | G65: N° Viv Asign | H65: N° Viv Nebul | I65: N° Actividades
G66: 80 | H66: =SUM(H67:H72) -> 20419 | I66: =MAX(I67:I72) -> 52
B67: ESCENARIO II | D67: 1° Intervención | G67: 80 | H67: =+GETPIVOTDATA(" BAS054",TABLAS!$A$49) -> 187 | I67: =+GETPIVOTDATA(" BAS053",TABLAS!$A$49) -> 4
D68: 2° Intervención | G68: 80 | H68: =+GETPIVOTDATA(" BAS056",TABLAS!$A$49) -> 349 | I68: =+GETPIVOTDATA(" BAS055",TABLAS!$A$49) -> 7
D69: 3° Intervención | G69: 80 | H69: =+GETPIVOTDATA(" BAS058",TABLAS!$A$49) -> 108 | I69: =+GETPIVOTDATA(" BAS057",TABLAS!$A$49) -> 2
B70: ESCENARIO III | D70: 1° Intervención | G70: 80 | H70: =+GETPIVOTDATA(" BAS060",TABLAS!$A$49) -> 6826 | I70: =+GETPIVOTDATA(" BAS059",TABLAS!$A$49) -> 52
D71: 2° Intervención | G71: 80 | H71: =+GETPIVOTDATA(" BAS062",TABLAS!$A$49) -> 6785 | I71: =+GETPIVOTDATA(" BAS061",TABLAS!$A$49) -> 50
D72: 3° Intervención | G72: 80 | H72: =+GETPIVOTDATA(" BAS064",TABLAS!$A$49) -> 6164 | I72: =+GETPIVOTDATA(" BAS063",TABLAS!$A$49) -> 46
B73: 7. Viviendas en áreas de transmisión de Bartonelosis y/o Leishmaniosis con vigilancia entomológica | G73: Lutzomias | H73: N° Viviendas | I73: N° Actividades
G74: =+G75+G80 -> 7665 | H74: =+H75+H80 -> 4243 | I74: 4170
B75: Actividades de Bartonelosis | G75: =SUM(G76:G79) -> 3561 | H75: =SUM(H76:H79) -> 2110 | I75: 2094
D76: IntraDomiciliario | G76: =+GETPIVOTDATA(" BAS067",TABLAS!$A$49) -> 26 | H76: =+GETPIVOTDATA(" BAS066",TABLAS!$A$49) -> 79 | I76: =+GETPIVOTDATA(" BAS065",TABLAS!$A$49) -> 80
D77: PeriDomiciliario | G77: =+GETPIVOTDATA(" BAS070",TABLAS!$A$49) -> 547 | H77: =+GETPIVOTDATA(" BAS069",TABLAS!$A$49) -> 245 | I77: =+GETPIVOTDATA(" BAS068",TABLAS!$A$49) -> 252
D78: ExtraDomiciliaria | G78: =+GETPIVOTDATA(" BAS073",TABLAS!$A$49) -> 69 | H78: =+GETPIVOTDATA(" BAS072",TABLAS!$A$49) -> 25 | I78: =+GETPIVOTDATA(" BAS071",TABLAS!$A$49) -> 26
D79: Intra-Peri Domiciliario | G79: =+GETPIVOTDATA(" BAS076",TABLAS!$A$49) -> 2919 | H79: =+GETPIVOTDATA(" BAS075",TABLAS!$A$49) -> 1761 | I79: =+GETPIVOTDATA(" BAS074",TABLAS!$A$49) -> 1736
B80: Actividades de Leishmaniosis | G80: =SUM(G81:G84) -> 4104 | H80: =SUM(H81:H84) -> 2133 | I80: 2076
D81: IntraDomiciliario | G81: =+GETPIVOTDATA(" BAS079",TABLAS!$A$49) -> 120 | H81: =+GETPIVOTDATA(" BAS078",TABLAS!$A$49) -> 95 | I81: =+GETPIVOTDATA(" BAS077",TABLAS!$A$49) -> 96
D82: PeriDomiciliario | G82: =+GETPIVOTDATA(" BAS082",TABLAS!$A$49) -> 623 | H82: =+GETPIVOTDATA(" BAS081",TABLAS!$A$49) -> 364 | I82: =+GETPIVOTDATA(" BAS080",TABLAS!$A$49) -> 314
D83: ExtraDomiciliaria | G83: =+GETPIVOTDATA(" BAS085",TABLAS!$A$49) -> 92 | H83: =+GETPIVOTDATA(" BAS084",TABLAS!$A$49) -> 10 | I83: =+GETPIVOTDATA(" BAS083",TABLAS!$A$49) -> 10
D84: Intra-Peri Domiciliario | G84: =+GETPIVOTDATA(" BAS088",TABLAS!$A$49) -> 3269 | H84: =+GETPIVOTDATA(" BAS087",TABLAS!$A$49) -> 1664 | I84: =+GETPIVOTDATA(" BAS086",TABLAS!$A$49) -> 1656
B85: 8. Viviendas en areas de transmision de Bartonelosis y/o Leishmaniosis protegidas con tratamiento residual | G85: N° Viv Asign | H85: N° Viv Interv | I85: N° Actividades
G86: 12 | H86: =SUM(H87:H88) -> 0 | I86: =MAX(I87:I88) -> 0
B87: Bartonelosis | G87: 12 | H87: =+GETPIVOTDATA(" BAS090",TABLAS!$A$49) -> 0 | I87: =+GETPIVOTDATA(" BAS089",TABLAS!$A$49) -> 0
B88: Leishmaniasis | G88: 12 | H88: =+GETPIVOTDATA(" BAS092",TABLAS!$A$49) -> 0 | I88: =+GETPIVOTDATA(" BAS091",TABLAS!$A$49) -> 0
B89: 9. Vivienda en áreas de transmisión de Chagas con vigilancia entomológica | H89: Triatominos | I89: N° Actividades
H90: =SUM(H91:H92) -> 0 | I90: =MAX(I91:I92) -> 0
B91: Intra Domiciliario
B92: Peri Domiciliario
B93: 10. Vivienda en áreas de transmisión de Chagas, protegidas con tratamiento residual
B94: 11. Viviendas protegidas de los principales condicionantes en las areas de riesgo de transmision de rabia silvestre | H94: N° Mosquiteros | I94: N° Actividades
H95: =SUM(H96:H98) -> 0 | I95: =MAX(I96:I98) -> 0
B96: Viviendas sin Paredes | H96: =+GETPIVOTDATA(" BAS102",TABLAS!$A$49) -> 0 | I96: =+GETPIVOTDATA(" BAS101",TABLAS!$A$49) -> 0
B97: Viviendas con Paredes sin Ventanas | H97: =+GETPIVOTDATA(" BAS104",TABLAS!$A$49) -> 0 | I97: =+GETPIVOTDATA(" BAS103",TABLAS!$A$49) -> 0
B98: Viviendas con Paredes y Ventanas | H98: =+GETPIVOTDATA(" BAS106",TABLAS!$A$49) -> 0 | I98: =+GETPIVOTDATA(" BAS105",TABLAS!$A$49) -> 0
B99: 12. Viviendas protegidas de los principales condicionantes en las areas de riesgo de transmision de peste
B100: 13. Viviendas en areas de riesgo de trasmision de Dengue con vigilancia entomologica domiciliar en escenario I (IntraDomiciliario) | G100: N° Viv(+) Aa | H100: N° Viviendas | I100: N° Actividades
G101: =+GETPIVOTDATA(" BAS113",TABLAS!$A$49) -> 1236 | H101: =+GETPIVOTDATA(" BAS112",TABLAS!$A$49) -> 5902 | I101: =+GETPIVOTDATA(" BAS111",TABLAS!$A$49) -> 148
B102: 14. Viviendas en areas de riesgo de transmision de dengue con vigilancia entomologica domiciliaria en escenario II y III | G102: N° Viv(+) Aa | H102: N° Viviendas | I102: N° Actividades
G103: =SUM(G104:G105) -> 8746 | H103: =SUM(H104:H105) -> 43716 | I103: =MAX(I104:I105) -> 1446
B104: Escenario II - Intra Domiciliario | G104: =+GETPIVOTDATA(" BAS116",TABLAS!$A$49) -> 5912 | H104: =+GETPIVOTDATA(" BAS115",TABLAS!$A$49) -> 37122 | I104: =+GETPIVOTDATA(" BAS114",TABLAS!$A$49) -> 1446
B105: Escenario III - Intra Domiciliario | G105: =+GETPIVOTDATA(" BAS119",TABLAS!$A$49) -> 2834 | H105: =+GETPIVOTDATA(" BAS118",TABLAS!$A$49) -> 6594 | I105: =+GETPIVOTDATA(" BAS117",TABLAS!$A$49) -> 229
B107: Recolección de Inservibles | G107: Toneladas | H107: N° Viv Interv | I107: N° Viv Prog
G108: =SUM(G109:G110) -> 1232 | H108: =SUM(H109:H110) -> 55376 | I108: =SUM(I109:I110) -> 90446
B109: ACTIVIDADES DE DENGUE | G109: =+GETPIVOTDATA(" BAS122",TABLAS!$A$49) -> 1231 | H109: =+GETPIVOTDATA(" BAS121",TABLAS!$A$49) -> 55170 | I109: =+GETPIVOTDATA(" BAS120",TABLAS!$A$49) -> 90050
B110: ACTIVIDADES DE FIEBRE AMARILLA - PESTE | G110: =+GETPIVOTDATA(" BAS125",TABLAS!$A$49) -> 1 | H110: =+GETPIVOTDATA(" BAS124",TABLAS!$A$49) -> 206 | I110: =+GETPIVOTDATA(" BAS123",TABLAS!$A$49) -> 396
B116: Firma de Responsable de Vigilancia y Control vectorial | G116: Firma y Responsable del Jefe del Establecimiento de Salud
B117: FUENTE : REGISTRO CONSULTA EXTERNA - OTRAS ACTIVIDADES DE SALUD --- [HIS]

Sheet TABLAS
C8: Valores | I8: Tabla | J8: =IF(I9="(Todas)","CUSCO ","") -> 
C9: RED | D9: 03 - LA CONVENCION | I9: =IF(MID(D9,1,2)="99","(All)",MID(D9,1,2)) -> 03 | J9: =IF(I9="(All)"," ",I9) -> 03 | M9: =LEN(MID(D9,5,90)) -> 14 | O9: =IF(MID(D9,6,5)="(All)","",D9) -> 03 - LA CONVENCION
C10: Micro RED | D10: 0399 - (All) | I10: =IF(MID(D10,3,2)="99","(All)",MID(D10,1,4)) -> (All) | M10: =LEN(MID(D10,7,90)) -> 6 | O10: =IF(MID(D10,8,5)="(All)","",D10) -> 
C11: Establecimiento | D11: 999999999 - (All) | I11: =IF(OR(MID(D11,1,9)="999999999",MID(D11,1,9)="000000000"),"(All)",MID(D11,1,9)) -> (All) | M11: =LEN(MID(D11,12,90)) -> 6 | O11: =IF(MID(D11,13,5)="(All)","",D11) -> 
C12: Provincia | D12: 00 - (All) | I12: =IF(MID(D12,1,2)="00","(All)",MID(D12,1,2)) -> (All) | M12: =LEN(MID(D12,6,90)) -> 5 | O12: =IF(MID(D12,6,5)="(All)","",D12) -> 
C13: Distrito | D13: 0000 - (All) | I13: =IF(OR(MID(D13,1,4)="0000",MID(D13,3,2)="00"),"(All)",MID(D13,1,4)) -> (All) | M13: =LEN(MID(D13,8,90)) -> 5 | O13: =IF(MID(D13,8,5)="(All)","",D13) -> 
C14: Ejecutora | D14: 99 - (ALL) | I14: =IF(MID(D14,1,2)="99","(All)",MID(D14,1,2)) -> (All) | M14: =LEN(MID(D14,5,90)) -> 6 | O14: =IF(MID(D14,6,5)="(All)","",D14) -> 
C16: Año | D16: 2024 | I16: =+D16 -> 2024 | J16: =IF(I16="(Todas)"," ",I16) -> 2024
B20: 1 | C20: 1 | D20: 1 | E20: 1 | F20: 1 | G20: 1 | H20: 1 | I20: 1 | J20: 1 | K20: 1 | L20: 1 | M20: 0 | N20: =SUM(B20:M20) -> 11
B21: =IF(B20=1,"ENERO","") -> ENERO | C21: =IF(C20=1,"FEBRERO","") -> FEBRERO | D21: =IF(D20=1,"MARZO","") -> MARZO | E21: =IF(E20=1,"ABRIL","") -> ABRIL | F21: =IF(F20=1,"MAYO","") -> MAYO | G21: =IF(G20=1,"JUNIO","") -> JUNIO | H21: =IF(H20=1,"JULIO","") -> JULIO | I21: =IF(I20=1,"AGOSTO","") -> AGOSTO | J21: =IF(J20=1,"SETIEMBRE","") -> SETIEMBRE | K21: =IF(K20=1,"OCTUBRE","") -> OCTUBRE | L21: =IF(L20=1,"NOVIEMBRE","") -> NOVIEMBRE | M21: =IF(M20=1,"DICIEMBRE","") ->  | N21: =IF(B20=1,B21,IF(C20=1,C21,IF(D20=1,D21,IF(E20=1,E21,IF(F20=1,F21,IF(G20=1,G21,IF(H20=1,H21,IF(I20=1,I21,IF(J20=1,J21,IF(K20=1,K21,IF(L20=1,L21,IF(M20=1,M21,"")))))))))))) -> ENERO
N22: =IF(N20=1,N21,"") -> 
B23: 2 | C23: 4 | D23: 6 | E23: 8 | F23: 10 | G23: 12 | H23: 14 | I23: 16 | J23: 18 | K23: 20 | L23: 22 | N23: =MIN(B23:M23) -> 2 | O23: =MAX(B23:M23) -> 22 | P23: =MAX(C23:N23) -> 22
B24: =IF(B23=2,"ENE","") -> ENE | C24: =IF(C23=4,"FEB","") -> FEB | D24: =IF(D23=6,"MAR","") -> MAR | E24: =IF(E23=8,"ABR","") -> ABR | F24: =IF(F23=10,"MAY","") -> MAY | G24: =IF(G23=12,"JUN","") -> JUN | H24: =IF(H23=14,"JUL","") -> JUL | I24: =IF(I23=16,"AGO","") -> AGO | J24: =IF(J23=18,"SET","") -> SET | K24: =IF(K23=20,"OCT","") -> OCT | L24: =IF(L23=22,"NOV","") -> NOV | M24: =IF(M23=24,"DIC","") ->  | N24: =IF(N23=B23,B24,IF(N23=C23,C24,IF(N23=D23,D24,IF(N23=E23,E24,IF(N23=F23,F24,IF(N23=G23,G24,IF(N23=H23,H58,IF(N23=I23,I24,IF(N23=J23,J24,IF(N23=K23,K24,IF(N23=L23,L24,IF(N23=M23,M24,"")))))))))))) -> ENE | O24: =IF(O23=C23,C24,IF(O23=D23,D24,IF(O23=E23,E24,IF(O23=F23,F24,IF(O23=G23,G24,IF(O23=H23,H24,IF(O23=I23,I24,IF(O23=J23,J24,IF(O23=K23,K24,IF(O23=L23,L24,IF(O23=M23,M24,""))))))))))) -> NOV | P24: =IF(P23=D23,D24,IF(P23=E23,E24,IF(P23=F23,F24,IF(P23=G23,G24,IF(P23=H23,H24,IF(P23=I23,I24,IF(P23=J23,J24,IF(P23=K23,K24,IF(P23=L23,L24,IF(P23=M23,M24,IF(P23=N23,N24,""))))))))))) -> NOV
N25: =CONCATENATE(N24," - ",O24) -> ENE - NOV
N26: =IF(N23=O23,N22,N25) -> ENE - NOV
A40: VECTOR01
A41: anno | B41: 2024
A42: cod_red | B42: (Todas)
A43: codmic | B43: (Todas)
A44: cod_prov | B44: (Todas)
A45: coddist | B45: (Todas)
A46: cod_estab | B46: (Todas)
A47: cod_eje | B47: (Todas)
B49: Valores
A50: Etiquetas de fila | B50: BAS001 | C50: BAS002 | D50: BAS003 | E50: BAS004 | F50: BAS005 | G50: BAS006 | H50: BAS007 | I50: BAS008 | J50: BAS009 | K50: BAS010 | L50: BAS011 | M50: BAS012 | N50: BAS013 | O50: BAS014 | P50: BAS015 | Q50: BAS016 | R50: BAS017 | S50: BAS018 | T50: BAS019 | U50: BAS020 | V50: BAS021 | W50: BAS022 | X50: BAS023 | Y50: BAS024 | Z50: BAS025 | AA50: BAS026 | AB50: BAS027 | AC50: BAS028 | AD50: BAS029 | AE50: BAS030 | AF50: BAS031 | AG50: BAS032 | AH50: BAS033 | AI50: BAS034 | AJ50: BAS035 | AK50: BAS036 | AL50: BAS037 | AM50: BAS038 | AN50: BAS039 | AO50: BAS040 | AP50: BAS041 | AQ50: BAS042 | AR50: BAS043 | AS50: BAS044 | AT50: BAS045 | AU50: BAS046 | AV50: BAS047 | AW50: BAS048 | AX50: BAS049 | AY50: BAS050 | AZ50: BAS051 | BA50: BAS052 | BB50: BAS053 | BC50: BAS054 | BD50: BAS055 | BE50: BAS056 | BF50: BAS057 | BG50: BAS058 | BH50: BAS059 | BI50: BAS060 | BJ50: BAS061 | BK50: BAS062 | BL50: BAS063 | BM50: BAS064 | BN50: BAS065 | BO50: BAS066 | BP50: BAS067 | BQ50: BAS068 | BR50: BAS069 | BS50: BAS070 | BT50: BAS071 | BU50: BAS072 | BV50: BAS073 | BW50: BAS074 | BX50: BAS075 | BY50: BAS076 | BZ50: BAS077 | CA50: BAS078 | CB50: BAS079 | CC50: BAS080 | CD50: BAS081 | CE50: BAS082 | CF50: BAS083 | CG50: BAS084 | CH50: BAS085 | CI50: BAS086 | CJ50: BAS087 | CK50: BAS088 | CL50: BAS089 | CM50: BAS090 | CN50: BAS091 | CO50: BAS092 | CP50: BAS093 | CQ50: BAS094 | CR50: BAS095 | CS50: BAS096 | CT50: BAS097 | CU50: BAS098 | CV50: BAS099 | CW50: BAS100 | CX50: BAS101 | CY50: BAS102 | CZ50: BAS103 | DA50: BAS104 | DB50: BAS105 | DC50: BAS106 | DD50: BAS107 | DE50: BAS108 | DF50: BAS109 | DG50: BAS110 | DH50: BAS111 | DI50: BAS112 | DJ50: BAS113 | DK50: BAS114 | DL50: BAS115 | DM50: BAS116 | DN50: BAS117 | DO50: BAS118 | DP50: BAS119 | DQ50: BAS120 | DR50: BAS121 | DS50: BAS122 | DT50: BAS123 | DU50: BAS124 | DV50: BAS125 | DW50: BAS126 | DX50: BAS127 | DY50: BAS128 | DZ50: BAS129 | EA50: BAS130 | EB50: BAS131 | EC50: BAS132 | ED50: BAS133 | EE50: BAS134 | EF50: BAS135 | EG50: BAS136 | EH50: BAS137 | EI50: BAS138 | EJ50: BAS139 | EK50: BAS140 | EL50: BAS141 | EM50: BAS142 | EN50: BAS143 | EO50: BAS144 | EP50: BAS145 | EQ50: BAS146 | ER50: BAS147 | ES50: BAS148 | ET50: BAS149 | EU50: BAS150 | EV50: BAS151 | EW50: BAS152 | EX50: BAS153 | EY50: BAS154 | EZ50: BAS155 | FA50: BAS156 | FB50: BAS157 | FC50: BAS158 | FD50: BAS159 | FE50: BAS160 | FF50: BAS161 | FG50: BAS162 | FH50: BAS163 | FI50: BAS164 | FJ50: BAS165 | FK50: BAS166 | FL50: BAS167 | FM50: BAS168 | FN50: BAS169 | FO50: BAS170 | FP50: BAS171 | FQ50: BAS172 | FR50: BAS173 | FS50: BAS174 | FT50: BAS175 | FU50: BAS176 | FV50: BAS177 | FW50: BAS178 | FX50: BAS179 | FY50: BAS180 | FZ50: BAS181 | GA50: BAS182 | GB50: BAS183 | GC50: BAS184 | GD50: BAS185 | GE50: BAS186 | GF50: BAS187 | GG50: BAS188 | GH50: BAS189 | GI50: BAS190 | GJ50: BAS191 | GK50: BAS192 | GL50: BAS193 | GM50: BAS194 | GN50: BAS195 | GO50: BAS196 | GP50: BAS197 | GQ50: BAS198 | GR50: BAS199 | GS50: BAS200 | GT50: BAS201 | GU50: BAS202 | GV50: BAS203 | GW50: BAS204 | GX50: BAS205 | GY50: BAS206 | GZ50: BAS207 | HA50: BAS208 | HB50: BAS209 | HC50: BAS210 | HD50: BAS211 | HE50: BAS212 | HF50: BAS213 | HG50: BAS214 | HH50: BAS215 | HI50: BAS216 | HJ50: BAS217 | HK50: BAS218 | HL50: BAS219 | HM50: BAS220 | HN50: BAS221 | HO50: BAS222 | HP50: BAS223 | HQ50: BAS224 | HR50: BAS225 | HS50: BAS226 | HT50: BAS227 | HU50: BAS228 | HV50: BAS229 | HW50: BAS230
A51: 2 | B51: 0 | C51: 0 | D51: 0 | E51: 0 | F51: 0 | G51: 0 | H51: 155 | I51: 140 | J51: 157 | K51: 247 | L51: 3 | M51: 3 | N51: 0 | O51: 13 | P51: 19 | Q51: 55 | R51: 0 | S51: 0 | T51: 0 | U51: 274 | V51: 89 | W51: 428 | X51: 89 | Y51: 0 | Z51: 0 | AA51: 0 | AB51: 0 | AC51: 0 | AD51: 0 | AE51: 45 | AF51: 96 | AG51: 45 | AH51: 0 | AI51: 0 | AJ51: 0 | AK51: 0 | AL51: 0 | AM51: 0 | AN51: 0 | AO51: 0 | AP51: 23 | AQ51: 210 | AR51: 62 | AS51: 23 | AT51: 115 | AU51: 315 | AV51: 200 | AW51: 12367 | AX51: 2 | AY51: 145 | AZ51: 3 | BA51: 81 | BB51: 4 | BC51: 187 | BD51: 7 | BE51: 349 | BF51: 0 | BG51: 0 | BH51: 25 | BI51: 6355 | BJ51: 23 | BK51: 6298 | BL51: 18 | BM51: 5675 | BN51: 13 | BO51: 13 | BP51: 4 | BQ51: 33 | BR51: 32 | BS51: 87 | BT51: 0 | BU51: 0 | BV51: 0 | BW51: 159 | BX51: 158 | BY51: 288 | BZ51: 15 | CA51: 15 | CB51: 9 | CC51: 34 | CD51: 43 | CE51: 24 | CF51: 0 | CG51: 0 | CH51: 0 | CI51: 150 | CJ51: 150 | CK51: 316 | CL51: 0 | CM51: 0 | CN51: 0 | CO51: 0 | CP51: 0 | CQ51: 0 | CR51: 0 | CS51: 0 | CT51: 0 | CU51: 0 | CV51: 0 | CW51: 0 | CX51: 0 | CY51: 0 | CZ51: 0 | DA51: 0 | DB51: 0 | DC51: 0 | DD51: 0 | DE51: 0 | DF51: 0 | DG51: 0 | DH51: 6 | DI51: 448 | DJ51: 101 | DK51: 120 | DL51: 3050 | DM51: 271 | DN51: 17 | DO51: 608 | DP51: 26 | DQ51: 7464 | DR51: 4596 | DS51: 67 | DT51: 0 | DU51: 0 | DV51: 0 | DW51: 0 | DX51: 0 | DY51: 0 | DZ51: 0 | EA51: 0 | EB51: 0 | EC51: 0 | ED51: 0 | EE51: 0 | EF51: 0 | EG51: 0 | EH51: 0 | EI51: 0 | EJ51: 0 | EK51: 0 | EL51: 0 | EM51: 0 | EN51: 0 | EO51: 0 | EP51: 0 | EQ51: 0 | ER51: 0 | ES51: 0 | ET51: 0 | EU51: 0 | EV51: 0 | EW51: 0 | EX51: 0 | EY51: 0 | EZ51: 0 | FA51: 0 | FB51: 0 | FC51: 0 | FD51: 0 | FE51: 0 | FF51: 0 | FG51: 0 | FH51: 0 | FI51: 0 | FJ51: 0 | FK51: 0 | FL51: 0 | FM51: 0 | FN51: 0 | FO51: 0 | FP51: 0 | FQ51: 0 | FR51: 0 | FS51: 0 | FT51: 0 | FU51: 0 | FV51: 0 | FW51: 0 | FX51: 0 | FY51: 0 | FZ51: 0 | GA51: 0 | GB51: 0 | GC51: 0 | GD51: 0 | GE51: 0 | GF51: 0 | GG51: 0 | GH51: 0 | GI51: 0 | GJ51: 0 | GK51: 0 | GL51: 0 | GM51: 0 | GN51: 0 | GO51: 0 | GP51: 0 | GQ51: 0 | GR51: 0 | GS51: 0 | GT51: 0 | GU51: 0 | GV51: 0 | GW51: 0 | GX51: 0 | GY51: 0 | GZ51: 0 | HA51: 0 | HB51: 0 | HC51: 0 | HD51: 0 | HE51: 0 | HF51: 0 | HG51: 0 | HH51: 0 | HI51: 0 | HJ51: 0 | HK51: 0 | HL51: 0 | HM51: 0 | HN51: 0 | HO51: 0 | HP51: 0 | HQ51: 0 | HR51: 0 | HS51: 0 | HT51: 0 | HU51: 0 | HV51: 0 | HW51: 0
A52: 3 | B52: 0 | C52: 0 | D52: 0 | E52: 0 | F52: 0 | G52: 0 | H52: 149 | I52: 132 | J52: 131 | K52: 257 | L52: 2 | M52: 2 | N52: 0 | O52: 15 | P52: 17 | Q52: 44 | R52: 0 | S52: 0 | T52: 0 | U52: 274 | V52: 92 | W52: 405 | X52: 92 | Y52: 0 | Z52: 0 | AA52: 0 | AB52: 0 | AC52: 0 | AD52: 0 | AE52: 50 | AF52: 99 | AG52: 50 | AH52: 0 | AI52: 0 | AJ52: 0 | AK52: 0 | AL52: 0 | AM52: 0 | AN52: 0 | AO52: 0 | AP52: 14 | AQ52: 17 | AR52: 0 | AS52: 36 | AT52: 170 | AU52: 378 | AV52: 221 | AW52: 18145 | AX52: 13 | AY52: 405 | AZ52: 6 | BA52: 284 | BB52: 0 | BC52: 0 | BD52: 0 | BE52: 0 | BF52: 2 | BG52: 108 | BH52: 0 | BI52: 0 | BJ52: 0 | BK52: 0 | BL52: 0 | BM52: 0 | BN52: 12 | BO52: 12 | BP52: 0 | BQ52: 23 | BR52: 22 | BS52: 52 | BT52: 2 | BU52: 2 | BV52: 0 | BW52: 157 | BX52: 151 | BY52: 167 | BZ52: 14 | CA52: 14 | CB52: 2 | CC52: 27 | CD52: 24 | CE52: 30 | CF52: 0 | CG52: 0 | CH52: 0 | CI52: 143 | CJ52: 139 | CK52: 191 | CL52: 0 | CM52: 0 | CN52: 0 | CO52: 0 | CP52: 0 | CQ52: 0 | CR52: 0 | CS52: 0 | CT52: 0 | CU52: 0 | CV52: 0 | CW52: 0 | CX52: 0 | CY52: 0 | CZ52: 0 | DA52: 0 | DB52: 0 | DC52: 0 | DD52: 0 | DE52: 0 | DF52: 0 | DG52: 0 | DH52: 20 | DI52: 932 | DJ52: 505 | DK52: 155 | DL52: 4109 | DM52: 874 | DN52: 20 | DO52: 481 | DP52: 19 | DQ52: 17914 | DR52: 10771 | DS52: 139 | DT52: 0 | DU52: 0 | DV52: 0 | DW52: 0 | DX52: 0 | DY52: 0 | DZ52: 0 | EA52: 0 | EB52: 0 | EC52: 0 | ED52: 0 | EE52: 0 | EF52: 0 | EG52: 0 | EH52: 0 | EI52: 0 | EJ52: 0 | EK52: 0 | EL52: 0 | EM52: 0 | EN52: 0 | EO52: 0 | EP52: 0 | EQ52: 0 | ER52: 0 | ES52: 0 | ET52: 0 | EU52: 0 | EV52: 0 | EW52: 0 | EX52: 0 | EY52: 0 | EZ52: 0 | FA52: 0 | FB52: 0 | FC52: 0 | FD52: 0 | FE52: 0 | FF52: 0 | FG52: 0 | FH52: 0 | FI52: 0 | FJ52: 0 | FK52: 0 | FL52: 0 | FM52: 0 | FN52: 0 | FO52: 0 | FP52: 0 | FQ52: 0 | FR52: 0 | FS52: 0 | FT52: 0 | FU52: 0 | FV52: 0 | FW52: 0 | FX52: 0 | FY52: 0 | FZ52: 0 | GA52: 0 | GB52: 0 | GC52: 0 | GD52: 0 | GE52: 0 | GF52: 0 | GG52: 0 | GH52: 0 | GI52: 0 | GJ52: 0 | GK52: 0 | GL52: 0 | GM52: 0 | GN52: 0 | GO52: 0 | GP52: 0 | GQ52: 0 | GR52: 0 | GS52: 0 | GT52: 0 | GU52: 0 | GV52: 0 | GW52: 0 | GX52: 0 | GY52: 0 | GZ52: 0 | HA52: 0 | HB52: 0 | HC52: 0 | HD52: 0 | HE52: 0 | HF52: 0 | HG52: 0 | HH52: 0 | HI52: 0 | HJ52: 0 | HK52: 0 | HL52: 0 | HM52: 0 | HN52: 0 | HO52: 0 | HP52: 0 | HQ52: 0 | HR52: 0 | HS52: 0 | HT52: 0 | HU52: 0 | HV52: 0 | HW52: 0
A53: 1 | B53: 0 | C53: 0 | D53: 0 | E53: 0 | F53: 0 | G53: 0 | H53: 150 | I53: 144 | J53: 163 | K53: 221 | L53: 1 | M53: 1 | N53: 0 | O53: 5 | P53: 5 | Q53: 0 | R53: 0 | S53: 0 | T53: 0 | U53: 276 | V53: 90 | W53: 420 | X53: 90 | Y53: 0 | Z53: 0 | AA53: 0 | AB53: 0 | AC53: 0 | AD53: 0 | AE53: 42 | AF53: 82 | AG53: 42 | AH53: 0 | AI53: 0 | AJ53: 0 | AK53: 0 | AL53: 0 | AM53: 0 | AN53: 0 | AO53: 0 | AP53: 19 | AQ53: 19 | AR53: 124 | AS53: 37 | AT53: 185 | AU53: 756 | AV53: 191 | AW53: 13775 | AX53: 10 | AY53: 696 | AZ53: 8 | BA53: 111 | BB53: 0 | BC53: 0 | BD53: 0 | BE53: 0 | BF53: 0 | BG53: 0 | BH53: 0 | BI53: 0 | BJ53: 0 | BK53: 0 | BL53: 0 | BM53: 0 | BN53: 16 | BO53: 16 | BP53: 0 | BQ53: 18 | BR53: 18 | BS53: 10 | BT53: 3 | BU53: 3 | BV53: 23 | BW53: 167 | BX53: 173 | BY53: 344 | BZ53: 16 | CA53: 16 | CB53: 0 | CC53: 24 | CD53: 24 | CE53: 10 | CF53: 3 | CG53: 3 | CH53: 23 | CI53: 158 | CJ53: 164 | CK53: 394 | CL53: 0 | CM53: 0 | CN53: 0 | CO53: 0 | CP53: 0 | CQ53: 0 | CR53: 0 | CS53: 0 | CT53: 0 | CU53: 0 | CV53: 0 | CW53: 0 | CX53: 0 | CY53: 0 | CZ53: 0 | DA53: 0 | DB53: 0 | DC53: 0 | DD53: 0 | DE53: 0 | DF53: 0 | DG53: 0 | DH53: 7 | DI53: 329 | DJ53: 1 | DK53: 105 | DL53: 3203 | DM53: 218 | DN53: 25 | DO53: 987 | DP53: 55 | DQ53: 17492 | DR53: 10538 | DS53: 175 | DT53: 198 | DU53: 103 | DV53: 1 | DW53: 0 | DX53: 0 | DY53: 0 | DZ53: 0 | EA53: 0 | EB53: 0 | EC53: 0 | ED53: 0 | EE53: 0 | EF53: 0 | EG53: 0 | EH53: 0 | EI53: 0 | EJ53: 0 | EK53: 0 | EL53: 0 | EM53: 0 | EN53: 0 | EO53: 0 | EP53: 0 | EQ53: 0 | ER53: 0 | ES53: 0 | ET53: 0 | EU53: 0 | EV53: 0 | EW53: 0 | EX53: 0 | EY53: 0 | EZ53: 0 | FA53: 0 | FB53: 0 | FC53: 0 | FD53: 0 | FE53: 0 | FF53: 0 | FG53: 0 | FH53: 0 | FI53: 0 | FJ53: 0 | FK53: 0 | FL53: 0 | FM53: 0 | FN53: 0 | FO53: 0 | FP53: 0 | FQ53: 0 | FR53: 0 | FS53: 0 | FT53: 0 | FU53: 0 | FV53: 0 | FW53: 0 | FX53: 0 | FY53: 0 | FZ53: 0 | GA53: 0 | GB53: 0 | GC53: 0 | GD53: 0 | GE53: 0 | GF53: 0 | GG53: 0 | GH53: 0 | GI53: 0 | GJ53: 0 | GK53: 0 | GL53: 0 | GM53: 0 | GN53: 0 | GO53: 0 | GP53: 0 | GQ53: 0 | GR53: 0 | GS53: 0 | GT53: 0 | GU53: 0 | GV53: 0 | GW53: 0 | GX53: 0 | GY53: 0 | GZ53: 0 | HA53: 0 | HB53: 0 | HC53: 0 | HD53: 0 | HE53: 0 | HF53: 0 | HG53: 0 | HH53: 0 | HI53: 0 | HJ53: 0 | HK53: 0 | HL53: 0 | HM53: 0 | HN53: 0 | HO53: 0 | HP53: 0 | HQ53: 0 | HR53: 0 | HS53: 0 | HT53: 0 | HU53: 0 | HV53: 0 | HW53: 0
A54: 4 | B54: 0 | C54: 0 | D54: 0 | E54: 0 | F54: 0 | G54: 0 | H54: 151 | I54: 133 | J54: 133 | K54: 241 | L54: 3 | M54: 3 | N54: 0 | O54: 14 | P54: 14 | Q54: 1 | R54: 1 | S54: 1 | T54: 1 | U54: 280 | V54: 95 | W54: 461 | X54: 95 | Y54: 0 | Z54: 0 | AA54: 0 | AB54: 0 | AC54: 0 | AD54: 0 | AE54: 52 | AF54: 87 | AG54: 52 | AH54: 0 | AI54: 0 | AJ54: 0 | AK54: 0 | AL54: 0 | AM54: 0 | AN54: 0 | AO54: 0 | AP54: 17 | AQ54: 17 | AR54: 310 | AS54: 32 | AT54: 152 | AU54: 630 | AV54: 202 | AW54: 11208 | AX54: 5 | AY54: 345 | AZ54: 4 | BA54: 68 | BB54: 0 | BC54: 0 | BD54: 0 | BE54: 0 | BF54: 0 | BG54: 0 | BH54: 15 | BI54: 341 | BJ54: 15 | BK54: 343 | BL54: 15 | BM54: 343 | BN54: 5 | BO54: 5 | BP54: 0 | BQ54: 28 | BR54: 26 | BS54: 34 | BT54: 6 | BU54: 6 | BV54: 0 | BW54: 146 | BX54: 144 | BY54: 165 | BZ54: 6 | CA54: 6 | CB54: 0 | CC54: 30 | CD54: 28 | CE54: 35 | CF54: 3 | CG54: 3 | CH54: 0 | CI54: 139 | CJ54: 138 | CK54: 206 | CL54: 0 | CM54: 0 | CN54: 0 | CO54: 0 | CP54: 0 | CQ54: 0 | CR54: 0 | CS54: 0 | CT54: 0 | CU54: 0 | CV54: 0 | CW54: 0 | CX54: 0 | CY54: 0 | CZ54: 0 | DA54: 0 | DB54: 0 | DC54: 0 | DD54: 0 | DE54: 0 | DF54: 0 | DG54: 0 | DH54: 28 | DI54: 817 | DJ54: 111 | DK54: 112 | DL54: 2649 | DM54: 255 | DN54: 40 | DO54: 922 | DP54: 1275 | DQ54: 8493 | DR54: 5855 | DS54: 58 | DT54: 0 | DU54: 0 | DV54: 0 | DW54: 0 | DX54: 0 | DY54: 0 | DZ54: 0 | EA54: 0 | EB54: 0 | EC54: 0 | ED54: 0 | EE54: 0 | EF54: 0 | EG54: 0 | EH54: 0 | EI54: 0 | EJ54: 0 | EK54: 0 | EL54: 0 | EM54: 0 | EN54: 0 | EO54: 0 | EP54: 0 | EQ54: 0 | ER54: 0 | ES54: 0 | ET54: 0 | EU54: 0 | EV54: 0 | EW54: 0 | EX54: 0 | EY54: 0 | EZ54: 0 | FA54: 0 | FB54: 0 | FC54: 0 | FD54: 0 | FE54: 0 | FF54: 0 | FG54: 0 | FH54: 0 | FI54: 0 | FJ54: 0 | FK54: 0 | FL54: 0 | FM54: 0 | FN54: 0 | FO54: 0 | FP54: 0 | FQ54: 0 | FR54: 0 | FS54: 0 | FT54: 0 | FU54: 0 | FV54: 0 | FW54: 0 | FX54: 0 | FY54: 0 | FZ54: 0 | GA54: 0 | GB54: 0 | GC54: 0 | GD54: 0 | GE54: 0 | GF54: 0 | GG54: 0 | GH54: 0 | GI54: 0 | GJ54: 0 | GK54: 0 | GL54: 0 | GM54: 0 | GN54: 0 | GO54: 0 | GP54: 0 | GQ54: 0 | GR54: 0 | GS54: 0 | GT54: 0 | GU54: 0 | GV54: 0 | GW54: 0 | GX54: 0 | GY54: 0 | GZ54: 0 | HA54: 0 | HB54: 0 | HC54: 0 | HD54: 0 | HE54: 0 | HF54: 0 | HG54: 0 | HH54: 0 | HI54: 0 | HJ54: 0 | HK54: 0 | HL54: 0 | HM54: 0 | HN54: 0 | HO54: 0 | HP54: 0 | HQ54: 0 | HR54: 0 | HS54: 0 | HT54: 0 | HU54: 0 | HV54: 0 | HW54: 0
A55: 5 | B55: 0 | C55: 0 | D55: 0 | E55: 0 | F55: 0 | G55: 0 | H55: 144 | I55: 125 | J55: 125 | K55: 353 | L55: 6 | M55: 9 | N55: 123 | O55: 17 | P55: 20 | Q55: 139 | R55: 0 | S55: 0 | T55: 0 | U55: 263 | V55: 90 | W55: 415 | X55: 90 | Y55: 0 | Z55: 0 | AA55: 0 | AB55: 0 | AC55: 0 | AD55: 0 | AE55: 48 | AF55: 86 | AG55: 48 | AH55: 0 | AI55: 0 | AJ55: 0 | AK55: 0 | AL55: 0 | AM55: 0 | AN55: 0 | AO55: 0 | AP55: 15 | AQ55: 14 | AR55: 497 | AS55: 32 | AT55: 160 | AU55: 1134 | AV55: 178 | AW55: 17986 | AX55: 5 | AY55: 304 | AZ55: 0 | BA55: 0 | BB55: 0 | BC55: 0 | BD55: 0 | BE55: 0 | BF55: 0 | BG55: 0 | BH55: 12 | BI55: 130 | BJ55: 12 | BK55: 144 | BL55: 13 | BM55: 146 | BN55: 5 | BO55: 5 | BP55: 0 | BQ55: 19 | BR55: 18 | BS55: 132 | BT55: 3 | BU55: 3 | BV55: 0 | BW55: 152 | BX55: 155 | BY55: 676 | BZ55: 7 | CA55: 7 | CB55: 84 | CC55: 25 | CD55: 23 | CE55: 178 | CF55: 0 | CG55: 0 | CH55: 0 | CI55: 151 | CJ55: 151 | CK55: 588 | CL55: 0 | CM55: 0 | CN55: 0 | CO55: 0 | CP55: 0 | CQ55: 0 | CR55: 0 | CS55: 0 | CT55: 0 | CU55: 0 | CV55: 0 | CW55: 0 | CX55: 0 | CY55: 0 | CZ55: 0 | DA55: 0 | DB55: 0 | DC55: 0 | DD55: 0 | DE55: 0 | DF55: 0 | DG55: 0 | DH55: 8 | DI55: 566 | DJ55: 404 | DK55: 111 | DL55: 3060 | DM55: 907 | DN55: 20 | DO55: 646 | DP55: 534 | DQ55: 5484 | DR55: 3518 | DS55: 51 | DT55: 96 | DU55: 1 | DV55: 0 | DW55: 0 | DX55: 0 | DY55: 0 | DZ55: 0 | EA55: 0 | EB55: 0 | EC55: 0 | ED55: 0 | EE55: 0 | EF55: 0 | EG55: 0 | EH55: 0 | EI55: 0 | EJ55: 0 | EK55: 0 | EL55: 0 | EM55: 0 | EN55: 0 | EO55: 0 | EP55: 0 | EQ55: 0 | ER55: 0 | ES55: 0 | ET55: 0 | EU55: 0 | EV55: 0 | EW55: 0 | EX55: 0 | EY55: 0 | EZ55: 0 | FA55: 0 | FB55: 0 | FC55: 0 | FD55: 0 | FE55: 0 | FF55: 0 | FG55: 0 | FH55: 0 | FI55: 0 | FJ55: 0 | FK55: 0 | FL55: 0 | FM55: 0 | FN55: 0 | FO55: 0 | FP55: 0 | FQ55: 0 | FR55: 0 | FS55: 0 | FT55: 0 | FU55: 0 | FV55: 0 | FW55: 0 | FX55: 0 | FY55: 0 | FZ55: 0 | GA55: 0 | GB55: 0 | GC55: 0 | GD55: 0 | GE55: 0 | GF55: 0 | GG55: 0 | GH55: 0 | GI55: 0 | GJ55: 0 | GK55: 0 | GL55: 0 | GM55: 0 | GN55: 0 | GO55: 0 | GP55: 0 | GQ55: 0 | GR55: 0 | GS55: 0 | GT55: 0 | GU55: 0 | GV55: 0 | GW55: 0 | GX55: 0 | GY55: 0 | GZ55: 0 | HA55: 0 | HB55: 0 | HC55: 0 | HD55: 0 | HE55: 0 | HF55: 0 | HG55: 0 | HH55: 0 | HI55: 0 | HJ55: 0 | HK55: 0 | HL55: 0 | HM55: 0 | HN55: 0 | HO55: 0 | HP55: 0 | HQ55: 0 | HR55: 0 | HS55: 0 | HT55: 0 | HU55: 0 | HV55: 0 | HW55: 0
A56: 6 | B56: 0 | C56: 0 | D56: 0 | E56: 0 | F56: 0 | G56: 0 | H56: 153 | I56: 131 | J56: 130 | K56: 145 | L56: 3 | M56: 3 | N56: 0 | O56: 17 | P56: 17 | Q56: 1 | R56: 2 | S56: 2 | T56: 0 | U56: 267 | V56: 86 | W56: 432 | X56: 86 | Y56: 0 | Z56: 0 | AA56: 0 | AB56: 0 | AC56: 0 | AD56: 0 | AE56: 50 | AF56: 105 | AG56: 50 | AH56: 0 | AI56: 0 | AJ56: 0 | AK56: 0 | AL56: 0 | AM56: 0 | AN56: 0 | AO56: 0 | AP56: 6 | AQ56: 10 | AR56: 0 | AS56: 23 | AT56: 129 | AU56: 441 | AV56: 194 | AW56: 21068 | AX56: 4 | AY56: 6 | AZ56: 2 | BA56: 73 | BB56: 0 | BC56: 0 | BD56: 0 | BE56: 0 | BF56: 0 | BG56: 0 | BH56: 0 | BI56: 0 | BJ56: 0 | BK56: 0 | BL56: 0 | BM56: 0 | BN56: 4 | BO56: 4 | BP56: 0 | BQ56: 31 | BR56: 32 | BS56: 110 | BT56: 3 | BU56: 3 | BV56: 0 | BW56: 156 | BX56: 163 | BY56: 140 | BZ56: 4 | CA56: 4 | CB56: 0 | CC56: 34 | CD56: 35 | CE56: 88 | CF56: 0 | CG56: 0 | CH56: 0 | CI56: 149 | CJ56: 146 | CK56: 165 | CL56: 0 | CM56: 0 | CN56: 0 | CO56: 0 | CP56: 0 | CQ56: 0 | CR56: 0 | CS56: 0 | CT56: 0 | CU56: 0 | CV56: 0 | CW56: 0 | CX56: 0 | CY56: 0 | CZ56: 0 | DA56: 0 | DB56: 0 | DC56: 0 | DD56: 0 | DE56: 0 | DF56: 0 | DG56: 0 | DH56: 16 | DI56: 630 | DJ56: 7 | DK56: 146 | DL56: 3688 | DM56: 810 | DN56: 18 | DO56: 574 | DP56: 738 | DQ56: 17813 | DR56: 11050 | DS56: 343 | DT56: 0 | DU56: 0 | DV56: 0 | DW56: 0 | DX56: 0 | DY56: 0 | DZ56: 0 | EA56: 0 | EB56: 0 | EC56: 0 | ED56: 0 | EE56: 0 | EF56: 0 | EG56: 0 | EH56: 0 | EI56: 0 | EJ56: 0 | EK56: 0 | EL56: 0 | EM56: 0 | EN56: 0 | EO56: 0 | EP56: 0 | EQ56: 0 | ER56: 0 | ES56: 0 | ET56: 0 | EU56: 0 | EV56: 0 | EW56: 0 | EX56: 0 | EY56: 0 | EZ56: 0 | FA56: 0 | FB56: 0 | FC56: 0 | FD56: 0 | FE56: 0 | FF56: 0 | FG56: 0 | FH56: 0 | FI56: 0 | FJ56: 0 | FK56: 0 | FL56: 0 | FM56: 0 | FN56: 0 | FO56: 0 | FP56: 0 | FQ56: 0 | FR56: 0 | FS56: 0 | FT56: 0 | FU56: 0 | FV56: 0 | FW56: 0 | FX56: 0 | FY56: 0 | FZ56: 0 | GA56: 0 | GB56: 0 | GC56: 0 | GD56: 0 | GE56: 0 | GF56: 0 | GG56: 0 | GH56: 0 | GI56: 0 | GJ56: 0 | GK56: 0 | GL56: 0 | GM56: 0 | GN56: 0 | GO56: 0 | GP56: 0 | GQ56: 0 | GR56: 0 | GS56: 0 | GT56: 0 | GU56: 0 | GV56: 0 | GW56: 0 | GX56: 0 | GY56: 0 | GZ56: 0 | HA56: 0 | HB56: 0 | HC56: 0 | HD56: 0 | HE56: 0 | HF56: 0 | HG56: 0 | HH56: 0 | HI56: 0 | HJ56: 0 | HK56: 0 | HL56: 0 | HM56: 0 | HN56: 0 | HO56: 0 | HP56: 0 | HQ56: 0 | HR56: 0 | HS56: 0 | HT56: 0 | HU56: 0 | HV56: 0 | HW56: 0
A57: 7 | B57: 0 | C57: 0 | D57: 0 | E57: 0 | F57: 0 | G57: 0 | H57: 152 | I57: 133 | J57: 137 | K57: 205 | L57: 3 | M57: 3 | N57: 0 | O57: 16 | P57: 16 | Q57: 47 | R57: 0 | S57: 0 | T57: 0 | U57: 268 | V57: 86 | W57: 399 | X57: 86 | Y57: 0 | Z57: 0 | AA57: 0 | AB57: 0 | AC57: 0 | AD57: 0 | AE57: 49 | AF57: 159 | AG57: 49 | AH57: 0 | AI57: 0 | AJ57: 0 | AK57: 0 | AL57: 0 | AM57: 0 | AN57: 0 | AO57: 0 | AP57: 8 | AQ57: 8 | AR57: 0 | AS57: 13 | AT57: 65 | AU57: 378 | AV57: 163 | AW57: 12803 | AX57: 1 | AY57: 1 | AZ57: 1 | BA57: 2 | BB57: 0 | BC57: 0 | BD57: 0 | BE57: 0 | BF57: 0 | BG57: 0 | BH57: 0 | BI57: 0 | BJ57: 0 | BK57: 0 | BL57: 0 | BM57: 0 | BN57: 7 | BO57: 7 | BP57: 0 | BQ57: 22 | BR57: 21 | BS57: 46 | BT57: 1 | BU57: 1 | BV57: 23 | BW57: 146 | BX57: 145 | BY57: 183 | BZ57: 8 | CA57: 8 | CB57: 0 | CC57: 32 | CD57: 63 | CE57: 112 | CF57: 1 | CG57: 1 | CH57: 23 | CI57: 142 | CJ57: 140 | CK57: 293 | CL57: 0 | CM57: 0 | CN57: 0 | CO57: 0 | CP57: 0 | CQ57: 0 | CR57: 0 | CS57: 0 | CT57: 0 | CU57: 0 | CV57: 0 | CW57: 0 | CX57: 0 | CY57: 0 | CZ57: 0 | DA57: 0 | DB57: 0 | DC57: 0 | DD57: 0 | DE57: 0 | DF57: 0 | DG57: 0 | DH57: 19 | DI57: 543 | DJ57: 1 | DK57: 112 | DL57: 2903 | DM57: 139 | DN57: 21 | DO57: 496 | DP57: 9 | DQ57: 3219 | DR57: 2344 | DS57: 222 | DT57: 0 | DU57: 0 | DV57: 0 | DW57: 0 | DX57: 0 | DY57: 0 | DZ57: 0 | EA57: 0 | EB57: 0 | EC57: 0 | ED57: 0 | EE57: 0 | EF57: 0 | EG57: 0 | EH57: 0 | EI57: 0 | EJ57: 0 | EK57: 0 | EL57: 0 | EM57: 0 | EN57: 0 | EO57: 0 | EP57: 0 | EQ57: 0 | ER57: 0 | ES57: 0 | ET57: 0 | EU57: 0 | EV57: 0 | EW57: 0 | EX57: 0 | EY57: 0 | EZ57: 0 | FA57: 0 | FB57: 0 | FC57: 0 | FD57: 0 | FE57: 0 | FF57: 0 | FG57: 0 | FH57: 0 | FI57: 0 | FJ57: 0 | FK57: 0 | FL57: 0 | FM57: 0 | FN57: 0 | FO57: 0 | FP57: 0 | FQ57: 0 | FR57: 0 | FS57: 0 | FT57: 0 | FU57: 0 | FV57: 0 | FW57: 0 | FX57: 0 | FY57: 0 | FZ57: 0 | GA57: 0 | GB57: 0 | GC57: 0 | GD57: 0 | GE57: 0 | GF57: 0 | GG57: 0 | GH57: 0 | GI57: 0 | GJ57: 0 | GK57: 0 | GL57: 0 | GM57: 0 | GN57: 0 | GO57: 0 | GP57: 0 | GQ57: 0 | GR57: 0 | GS57: 0 | GT57: 0 | GU57: 0 | GV57: 0 | GW57: 0 | GX57: 0 | GY57: 0 | GZ57: 0 | HA57: 0 | HB57: 0 | HC57: 0 | HD57: 0 | HE57: 0 | HF57: 0 | HG57: 0 | HH57: 0 | HI57: 0 | HJ57: 0 | HK57: 0 | HL57: 0 | HM57: 0 | HN57: 0 | HO57: 0 | HP57: 0 | HQ57: 0 | HR57: 0 | HS57: 0 | HT57: 0 | HU57: 0 | HV57: 0 | HW57: 0
A58: 8 | B58: 0 | C58: 0 | D58: 0 | E58: 0 | F58: 0 | G58: 0 | H58: 154 | I58: 139 | J58: 135 | K58: 211 | L58: 3 | M58: 3 | N58: 0 | O58: 12 | P58: 12 | Q58: 7 | R58: 0 | S58: 0 | T58: 0 | U58: 282 | V58: 94 | W58: 415 | X58: 94 | Y58: 0 | Z58: 0 | AA58: 0 | AB58: 0 | AC58: 0 | AD58: 0 | AE58: 49 | AF58: 115 | AG58: 49 | AH58: 0 | AI58: 0 | AJ58: 0 | AK58: 0 | AL58: 0 | AM58: 0 | AN58: 0 | AO58: 0 | AP58: 13 | AQ58: 19 | AR58: 129 | AS58: 15 | AT58: 75 | AU58: 378 | AV58: 161 | AW58: 12966 | AX58: 4 | AY58: 486 | AZ58: 3 | BA58: 67 | BB58: 0 | BC58: 0 | BD58: 0 | BE58: 0 | BF58: 0 | BG58: 0 | BH58: 0 | BI58: 0 | BJ58: 0 | BK58: 0 | BL58: 0 | BM58: 0 | BN58: 2 | BO58: 2 | BP58: 0 | BQ58: 22 | BR58: 22 | BS58: 25 | BT58: 2 | BU58: 2 | BV58: 0 | BW58: 165 | BX58: 164 | BY58: 220 | BZ58: 2 | CA58: 2 | CB58: 0 | CC58: 29 | CD58: 33 | CE58: 69 | CF58: 1 | CG58: 1 | CH58: 0 | CI58: 161 | CJ58: 161 | CK58: 302 | CL58: 0 | CM58: 0 | CN58: 0 | CO58: 0 | CP58: 0 | CQ58: 0 | CR58: 0 | CS58: 0 | CT58: 0 | CU58: 0 | CV58: 0 | CW58: 0 | CX58: 0 | CY58: 0 | CZ58: 0 | DA58: 0 | DB58: 0 | DC58: 0 | DD58: 0 | DE58: 0 | DF58: 0 | DG58: 0 | DH58: 12 | DI58: 446 | DJ58: 2 | DK58: 147 | DL58: 3742 | DM58: 955 | DN58: 8 | DO58: 324 | DP58: 8 | DQ58: 1797 | DR58: 1538 | DS58: 81 | DT58: 0 | DU58: 0 | DV58: 0 | DW58: 0 | DX58: 0 | DY58: 0 | DZ58: 0 | EA58: 0 | EB58: 0 | EC58: 0 | ED58: 0 | EE58: 0 | EF58: 0 | EG58: 0 | EH58: 0 | EI58: 0 | EJ58: 0 | EK58: 0 | EL58: 0 | EM58: 0 | EN58: 0 | EO58: 0 | EP58: 0 | EQ58: 0 | ER58: 0 | ES58: 0 | ET58: 0 | EU58: 0 | EV58: 0 | EW58: 0 | EX58: 0 | EY58: 0 | EZ58: 0 | FA58: 0 | FB58: 0 | FC58: 0 | FD58: 0 | FE58: 0 | FF58: 0 | FG58: 0 | FH58: 0 | FI58: 0 | FJ58: 0 | FK58: 0 | FL58: 0 | FM58: 0 | FN58: 0 | FO58: 0 | FP58: 0 | FQ58: 0 | FR58: 0 | FS58: 0 | FT58: 0 | FU58: 0 | FV58: 0 | FW58: 0 | FX58: 0 | FY58: 0 | FZ58: 0 | GA58: 0 | GB58: 0 | GC58: 0 | GD58: 0 | GE58: 0 | GF58: 0 | GG58: 0 | GH58: 0 | GI58: 0 | GJ58: 0 | GK58: 0 | GL58: 0 | GM58: 0 | GN58: 0 | GO58: 0 | GP58: 0 | GQ58: 0 | GR58: 0 | GS58: 0 | GT58: 0 | GU58: 0 | GV58: 0 | GW58: 0 | GX58: 0 | GY58: 0 | GZ58: 0 | HA58: 0 | HB58: 0 | HC58: 0 | HD58: 0 | HE58: 0 | HF58: 0 | HG58: 0 | HH58: 0 | HI58: 0 | HJ58: 0 | HK58: 0 | HL58: 0 | HM58: 0 | HN58: 0 | HO58: 0 | HP58: 0 | HQ58: 0 | HR58: 0 | HS58: 0 | HT58: 0 | HU58: 0 | HV58: 0 | HW58: 0
A59: 9 | B59: 0 | C59: 0 | D59: 0 | E59: 0 | F59: 0 | G59: 0 | H59: 150 | I59: 134 | J59: 139 | K59: 128 | L59: 5 | M59: 5 | N59: 14 | O59: 11 | P59: 11 | Q59: 0 | R59: 0 | S59: 0 | T59: 0 | U59: 260 | V59: 91 | W59: 450 | X59: 91 | Y59: 0 | Z59: 0 | AA59: 0 | AB59: 0 | AC59: 0 | AD59: 0 | AE59: 36 | AF59: 72 | AG59: 36 | AH59: 0 | AI59: 0 | AJ59: 0 | AK59: 0 | AL59: 0 | AM59: 0 | AN59: 0 | AO59: 0 | AP59: 19 | AQ59: 19 | AR59: 248 | AS59: 25 | AT59: 125 | AU59: 756 | AV59: 156 | AW59: 13403 | AX59: 1 | AY59: 10 | AZ59: 4 | BA59: 141 | BB59: 0 | BC59: 0 | BD59: 0 | BE59: 0 | BF59: 0 | BG59: 0 | BH59: 0 | BI59: 0 | BJ59: 0 | BK59: 0 | BL59: 0 | BM59: 0 | BN59: 4 | BO59: 4 | BP59: 0 | BQ59: 25 | BR59: 23 | BS59: 23 | BT59: 3 | BU59: 2 | BV59: 0 | BW59: 158 | BX59: 158 | BY59: 190 | BZ59: 7 | CA59: 7 | CB59: 0 | CC59: 28 | CD59: 27 | CE59: 23 | CF59: 0 | CG59: 0 | CH59: 0 | CI59: 151 | CJ59: 151 | CK59: 207 | CL59: 0 | CM59: 0 | CN59: 0 | CO59: 0 | CP59: 0 | CQ59: 0 | CR59: 0 | CS59: 0 | CT59: 0 | CU59: 0 | CV59: 0 | CW59: 0 | CX59: 0 | CY59: 0 | CZ59: 0 | DA59: 0 | DB59: 0 | DC59: 0 | DD59: 0 | DE59: 0 | DF59: 0 | DG59: 0 | DH59: 16 | DI59: 402 | DJ59: 1 | DK59: 148 | DL59: 3601 | DM59: 439 | DN59: 18 | DO59: 418 | DP59: 118 | DQ59: 5590 | DR59: 2242 | DS59: 47 | DT59: 102 | DU59: 102 | DV59: 0 | DW59: 0 | DX59: 0 | DY59: 0 | DZ59: 0 | EA59: 0 | EB59: 0 | EC59: 0 | ED59: 0 | EE59: 0 | EF59: 0 | EG59: 0 | EH59: 0 | EI59: 0 | EJ59: 0 | EK59: 0 | EL59: 0 | EM59: 0 | EN59: 0 | EO59: 0 | EP59: 0 | EQ59: 0 | ER59: 0 | ES59: 0 | ET59: 0 | EU59: 0 | EV59: 0 | EW59: 0 | EX59: 0 | EY59: 0 | EZ59: 0 | FA59: 0 | FB59: 0 | FC59: 0 | FD59: 0 | FE59: 0 | FF59: 0 | FG59: 0 | FH59: 0 | FI59: 0 | FJ59: 0 | FK59: 0 | FL59: 0 | FM59: 0 | FN59: 0 | FO59: 0 | FP59: 0 | FQ59: 0 | FR59: 0 | FS59: 0 | FT59: 0 | FU59: 0 | FV59: 0 | FW59: 0 | FX59: 0 | FY59: 0 | FZ59: 0 | GA59: 0 | GB59: 0 | GC59: 0 | GD59: 0 | GE59: 0 | GF59: 0 | GG59: 0 | GH59: 0 | GI59: 0 | GJ59: 0 | GK59: 0 | GL59: 0 | GM59: 0 | GN59: 0 | GO59: 0 | GP59: 0 | GQ59: 0 | GR59: 0 | GS59: 0 | GT59: 0 | GU59: 0 | GV59: 0 | GW59: 0 | GX59: 0 | GY59: 0 | GZ59: 0 | HA59: 0 | HB59: 0 | HC59: 0 | HD59: 0 | HE59: 0 | HF59: 0 | HG59: 0 | HH59: 0 | HI59: 0 | HJ59: 0 | HK59: 0 | HL59: 0 | HM59: 0 | HN59: 0 | HO59: 0 | HP59: 0 | HQ59: 0 | HR59: 0 | HS59: 0 | HT59: 0 | HU59: 0 | HV59: 0 | HW59: 0
A60: 10 | B60: 0 | C60: 0 | D60: 0 | E60: 0 | F60: 0 | G60: 0 | H60: 155 | I60: 136 | J60: 138 | K60: 1392 | L60: 2 | M60: 2 | N60: 0 | O60: 16 | P60: 16 | Q60: 89 | R60: 2 | S60: 1 | T60: 55 | U60: 275 | V60: 95 | W60: 470 | X60: 95 | Y60: 0 | Z60: 0 | AA60: 0 | AB60: 0 | AC60: 0 | AD60: 0 | AE60: 44 | AF60: 69 | AG60: 44 | AH60: 0 | AI60: 0 | AJ60: 0 | AK60: 0 | AL60: 0 | AM60: 0 | AN60: 0 | AO60: 0 | AP60: 16 | AQ60: 16 | AR60: 186 | AS60: 18 | AT60: 70 | AU60: 504 | AV60: 141 | AW60: 11969 | AX60: 1 | AY60: 210 | AZ60: 4 | BA60: 95 | BB60: 0 | BC60: 0 | BD60: 0 | BE60: 0 | BF60: 0 | BG60: 0 | BH60: 0 | BI60: 0 | BJ60: 0 | BK60: 0 | BL60: 0 | BM60: 0 | BN60: 10 | BO60: 9 | BP60: 22 | BQ60: 14 | BR60: 14 | BS60: 22 | BT60: 3 | BU60: 3 | BV60: 23 | BW60: 161 | BX60: 159 | BY60: 284 | BZ60: 10 | CA60: 9 | CB60: 22 | CC60: 22 | CD60: 22 | CE60: 22 | CF60: 1 | CG60: 1 | CH60: 23 | CI60: 152 | CJ60: 150 | CK60: 321 | CL60: 0 | CM60: 0 | CN60: 0 | CO60: 0 | CP60: 0 | CQ60: 0 | CR60: 0 | CS60: 0 | CT60: 0 | CU60: 0 | CV60: 0 | CW60: 0 | CX60: 0 | CY60: 0 | CZ60: 0 | DA60: 0 | DB60: 0 | DC60: 0 | DD60: 0 | DE60: 0 | DF60: 0 | DG60: 0 | DH60: 11 | DI60: 415 | DJ60: 102 | DK60: 135 | DL60: 3283 | DM60: 133 | DN60: 20 | DO60: 518 | DP60: 22 | DQ60: 1085 | DR60: 1031 | DS60: 7 | DT60: 0 | DU60: 0 | DV60: 0 | DW60: 0 | DX60: 0 | DY60: 0 | DZ60: 0 | EA60: 0 | EB60: 0 | EC60: 0 | ED60: 0 | EE60: 0 | EF60: 0 | EG60: 0 | EH60: 0 | EI60: 0 | EJ60: 0 | EK60: 0 | EL60: 0 | EM60: 0 | EN60: 0 | EO60: 0 | EP60: 0 | EQ60: 0 | ER60: 0 | ES60: 0 | ET60: 0 | EU60: 0 | EV60: 0 | EW60: 0 | EX60: 0 | EY60: 0 | EZ60: 0 | FA60: 0 | FB60: 0 | FC60: 0 | FD60: 0 | FE60: 0 | FF60: 0 | FG60: 0 | FH60: 0 | FI60: 0 | FJ60: 0 | FK60: 0 | FL60: 0 | FM60: 0 | FN60: 0 | FO60: 0 | FP60: 0 | FQ60: 0 | FR60: 0 | FS60: 0 | FT60: 0 | FU60: 0 | FV60: 0 | FW60: 0 | FX60: 0 | FY60: 0 | FZ60: 0 | GA60: 0 | GB60: 0 | GC60: 0 | GD60: 0 | GE60: 0 | GF60: 0 | GG60: 0 | GH60: 0 | GI60: 0 | GJ60: 0 | GK60: 0 | GL60: 0 | GM60: 0 | GN60: 0 | GO60: 0 | GP60: 0 | GQ60: 0 | GR60: 0 | GS60: 0 | GT60: 0 | GU60: 0 | GV60: 0 | GW60: 0 | GX60: 0 | GY60: 0 | GZ60: 0 | HA60: 0 | HB60: 0 | HC60: 0 | HD60: 0 | HE60: 0 | HF60: 0 | HG60: 0 | HH60: 0 | HI60: 0 | HJ60: 0 | HK60: 0 | HL60: 0 | HM60: 0 | HN60: 0 | HO60: 0 | HP60: 0 | HQ60: 0 | HR60: 0 | HS60: 0 | HT60: 0 | HU60: 0 | HV60: 0 | HW60: 0
A61: 11 | B61: 0 | C61: 0 | D61: 0 | E61: 0 | F61: 0 | G61: 0 | H61: 148 | I61: 125 | J61: 145 | K61: 205 | L61: 6 | M61: 7 | N61: 1 | O61: 16 | P61: 20 | Q61: 52 | R61: 1 | S61: 2 | T61: 0 | U61: 253 | V61: 87 | W61: 363 | X61: 87 | Y61: 0 | Z61: 0 | AA61: 0 | AB61: 0 | AC61: 0 | AD61: 0 | AE61: 42 | AF61: 120 | AG61: 42 | AH61: 0 | AI61: 0 | AJ61: 0 | AK61: 0 | AL61: 0 | AM61: 0 | AN61: 0 | AO61: 0 | AP61: 13 | AQ61: 13 | AR61: 0 | AS61: 25 | AT61: 125 | AU61: 378 | AV61: 133 | AW61: 12254 | AX61: 1 | AY61: 210 | AZ61: 4 | BA61: 222 | BB61: 0 | BC61: 0 | BD61: 0 | BE61: 0 | BF61: 0 | BG61: 0 | BH61: 0 | BI61: 0 | BJ61: 0 | BK61: 0 | BL61: 0 | BM61: 0 | BN61: 2 | BO61: 2 | BP61: 0 | BQ61: 17 | BR61: 17 | BS61: 6 | BT61: 0 | BU61: 0 | BV61: 0 | BW61: 169 | BX61: 191 | BY61: 262 | BZ61: 7 | CA61: 7 | CB61: 3 | CC61: 29 | CD61: 42 | CE61: 32 | CF61: 1 | CG61: 1 | CH61: 23 | CI61: 160 | CJ61: 174 | CK61: 286 | CL61: 0 | CM61: 0 | CN61: 0 | CO61: 0 | CP61: 0 | CQ61: 0 | CR61: 0 | CS61: 0 | CT61: 0 | CU61: 0 | CV61: 0 | CW61: 0 | CX61: 0 | CY61: 0 | CZ61: 0 | DA61: 0 | DB61: 0 | DC61: 0 | DD61: 0 | DE61: 0 | DF61: 0 | DG61: 0 | DH61: 5 | DI61: 374 | DJ61: 1 | DK61: 155 | DL61: 3834 | DM61: 911 | DN61: 22 | DO61: 620 | DP61: 30 | DQ61: 3699 | DR61: 1687 | DS61: 41 | DT61: 0 | DU61: 0 | DV61: 0 | DW61: 0 | DX61: 0 | DY61: 0 | DZ61: 0 | EA61: 0 | EB61: 0 | EC61: 0 | ED61: 0 | EE61: 0 | EF61: 0 | EG61: 0 | EH61: 0 | EI61: 0 | EJ61: 0 | EK61: 0 | EL61: 0 | EM61: 0 | EN61: 0 | EO61: 0 | EP61: 0 | EQ61: 0 | ER61: 0 | ES61: 0 | ET61: 0 | EU61: 0 | EV61: 0 | EW61: 0 | EX61: 0 | EY61: 0 | EZ61: 0 | FA61: 0 | FB61: 0 | FC61: 0 | FD61: 0 | FE61: 0 | FF61: 0 | FG61: 0 | FH61: 0 | FI61: 0 | FJ61: 0 | FK61: 0 | FL61: 0 | FM61: 0 | FN61: 0 | FO61: 0 | FP61: 0 | FQ61: 0 | FR61: 0 | FS61: 0 | FT61: 0 | FU61: 0 | FV61: 0 | FW61: 0 | FX61: 0 | FY61: 0 | FZ61: 0 | GA61: 0 | GB61: 0 | GC61: 0 | GD61: 0 | GE61: 0 | GF61: 0 | GG61: 0 | GH61: 0 | GI61: 0 | GJ61: 0 | GK61: 0 | GL61: 0 | GM61: 0 | GN61: 0 | GO61: 0 | GP61: 0 | GQ61: 0 | GR61: 0 | GS61: 0 | GT61: 0 | GU61: 0 | GV61: 0 | GW61: 0 | GX61: 0 | GY61: 0 | GZ61: 0 | HA61: 0 | HB61: 0 | HC61: 0 | HD61: 0 | HE61: 0 | HF61: 0 | HG61: 0 | HH61: 0 | HI61: 0 | HJ61: 0 | HK61: 0 | HL61: 0 | HM61: 0 | HN61: 0 | HO61: 0 | HP61: 0 | HQ61: 0 | HR61: 0 | HS61: 0 | HT61: 0 | HU61: 0 | HV61: 0 | HW61: 0
A62: T | B62: 0 | C62: 0 | D62: 0 | E62: 0 | F62: 0 | G62: 0 | H62: 1661 | I62: 1472 | J62: 1533 | K62: 3605 | L62: 37 | M62: 41 | N62: 138 | O62: 152 | P62: 167 | Q62: 435 | R62: 6 | S62: 6 | T62: 56 | U62: 2972 | V62: 995 | W62: 4658 | X62: 995 | Y62: 0 | Z62: 0 | AA62: 0 | AB62: 0 | AC62: 0 | AD62: 0 | AE62: 507 | AF62: 1090 | AG62: 507 | AH62: 0 | AI62: 0 | AJ62: 0 | AK62: 0 | AL62: 0 | AM62: 0 | AN62: 0 | AO62: 0 | AP62: 163 | AQ62: 362 | AR62: 1556 | AS62: 279 | AT62: 1371 | AU62: 6048 | AV62: 1940 | AW62: 157944 | AX62: 47 | AY62: 2818 | AZ62: 39 | BA62: 1144 | BB62: 4 | BC62: 187 | BD62: 7 | BE62: 349 | BF62: 2 | BG62: 108 | BH62: 52 | BI62: 6826 | BJ62: 50 | BK62: 6785 | BL62: 46 | BM62: 6164 | BN62: 80 | BO62: 79 | BP62: 26 | BQ62: 252 | BR62: 245 | BS62: 547 | BT62: 26 | BU62: 25 | BV62: 69 | BW62: 1736 | BX62: 1761 | BY62: 2919 | BZ62: 96 | CA62: 95 | CB62: 120 | CC62: 314 | CD62: 364 | CE62: 623 | CF62: 10 | CG62: 10 | CH62: 92 | CI62: 1656 | CJ62: 1664 | CK62: 3269 | CL62: 0 | CM62: 0 | CN62: 0 | CO62: 0 | CP62: 0 | CQ62: 0 | CR62: 0 | CS62: 0 | CT62: 0 | CU62: 0 | CV62: 0 | CW62: 0 | CX62: 0 | CY62: 0 | CZ62: 0 | DA62: 0 | DB62: 0 | DC62: 0 | DD62: 0 | DE62: 0 | DF62: 0 | DG62: 0 | DH62: 148 | DI62: 5902 | DJ62: 1236 | DK62: 1446 | DL62: 37122 | DM62: 5912 | DN62: 229 | DO62: 6594 | DP62: 2834 | DQ62: 90050 | DR62: 55170 | DS62: 1231 | DT62: 396 | DU62: 206 | DV62: 1 | DW62: 0 | DX62: 0 | DY62: 0 | DZ62: 0 | EA62: 0 | EB62: 0 | EC62: 0 | ED62: 0 | EE62: 0 | EF62: 0 | EG62: 0 | EH62: 0 | EI62: 0 | EJ62: 0 | EK62: 0 | EL62: 0 | EM62: 0 | EN62: 0 | EO62: 0 | EP62: 0 | EQ62: 0 | ER62: 0 | ES62: 0 | ET62: 0 | EU62: 0 | EV62: 0 | EW62: 0 | EX62: 0 | EY62: 0 | EZ62: 0 | FA62: 0 | FB62: 0 | FC62: 0 | FD62: 0 | FE62: 0 | FF62: 0 | FG62: 0 | FH62: 0 | FI62: 0 | FJ62: 0 | FK62: 0 | FL62: 0 | FM62: 0 | FN62: 0 | FO62: 0 | FP62: 0 | FQ62: 0 | FR62: 0 | FS62: 0 | FT62: 0 | FU62: 0 | FV62: 0 | FW62: 0 | FX62: 0 | FY62: 0 | FZ62: 0 | GA62: 0 | GB62: 0 | GC62: 0 | GD62: 0 | GE62: 0 | GF62: 0 | GG62: 0 | GH62: 0 | GI62: 0 | GJ62: 0 | GK62: 0 | GL62: 0 | GM62: 0 | GN62: 0 | GO62: 0 | GP62: 0 | GQ62: 0 | GR62: 0 | GS62: 0 | GT62: 0 | GU62: 0 | GV62: 0 | GW62: 0 | GX62: 0 | GY62: 0 | GZ62: 0 | HA62: 0 | HB62: 0 | HC62: 0 | HD62: 0 | HE62: 0 | HF62: 0 | HG62: 0 | HH62: 0 | HI62: 0 | HJ62: 0 | HK62: 0 | HL62: 0 | HM62: 0 | HN62: 0 | HO62: 0 | HP62: 0 | HQ62: 0 | HR62: 0 | HS62: 0 | HT62: 0 | HU62: 0 | HV62: 0 | HW62: 0
A67: Total_mes | B67: =SUM(B51:B62) -> 0 | C67: 0 | D67: 0 | E67: 0 | F67: 0 | G67: 0 | H67: 3322 | I67: 2944 | J67: 3066 | K67: 7210 | L67: 74 | M67: 82 | N67: 276 | O67: 304 | P67: 334 | Q67: 870 | R67: 12 | S67: 12 | T67: 112 | U67: 5944 | V67: 1990 | W67: 9316 | X67: 1990 | Y67: 0 | Z67: 0 | AA67: 0 | AB67: 0 | AC67: 0 | AD67: 0 | AE67: 1014 | AF67: 2180 | AG67: 1014 | AH67: =SUM(AH51:AH62) -> 0 | AI67: 0 | AJ67: 0 | AK67: 0 | AL67: 0 | AM67: 0 | AN67: 0 | AO67: 0 | AP67: 326 | AQ67: 724 | AR67: 3112 | AS67: 558 | AT67: 2742 | AU67: 12096 | AV67: 3880 | AW67: 315888 | AX67: 94 | AY67: 5636 | AZ67: 78 | BA67: 2288 | BB67: 8 | BC67: 374 | BD67: 14 | BE67: 698 | BF67: 4 | BG67: 216 | BH67: 104 | BI67: 13652 | BJ67: 100 | BK67: 13570 | BL67: 92 | BM67: 12328 | BN67: =SUM(BN51:BN62) -> 160 | BO67: 158 | BP67: 52 | BQ67: 504 | BR67: 490 | BS67: 1094 | BT67: 52 | BU67: 50 | BV67: 138 | BW67: 3472 | BX67: 3522 | BY67: 5838 | BZ67: 192 | CA67: 190 | CB67: 240 | CC67: 628 | CD67: 728 | CE67: 1246 | CF67: 20 | CG67: 20 | CH67: 184 | CI67: 3312 | CJ67: 3328 | CK67: 6538 | CL67: 0 | CM67: 0 | CN67: 0 | CO67: 0 | CP67: 0 | CQ67: 0 | CR67: 0 | CS67: 0 | CT67: =SUM(CT51:CT62) -> 0 | CU67: 0 | CV67: 0 | CW67: 0 | CX67: 0 | CY67: 0 | CZ67: 0 | DA67: 0 | DB67: 0 | DC67: 0 | DD67: 0 | DE67: 0 | DF67: 0 | DG67: 0
A68: =CONCATENATE(A51,"-",A52,"-",A53,"-",A54,"-",A55,"-",A56,"-",A57,"-",A58,"-",A59,"-",A60,"-",A61,"-",A62) -> 2-3-1-4-5-6-7-8-9-10-11-T
A69: =CONCATENATE(A51,"-",A52,"-",A53,"-",A54,"-",A55,"-",A56,"-",A57,"-",A58,"-",A59,"-",A60,"-",A61,"-",A62) -> 2-3-1-4-5-6-7-8-9-10-11-T
B70: BAS001 | C70: BAS002 | D70: BAS003 | E70: BAS004 | F70: BAS005 | G70: BAS006 | H70: BAS007 | I70: BAS008 | J70: BAS009 | K70: BAS010 | L70: BAS011 | M70: BAS012 | N70: BAS013 | O70: BAS014 | P70: BAS015 | Q70: BAS016 | R70: BAS017 | S70: BAS018 | T70: BAS019 | U70: BAS020 | V70: BAS021 | W70: BAS022 | X70: BAS023 | Y70: BAS024 | Z70: BAS025 | AA70: BAS026 | AB70: BAS027 | AC70: BAS028 | AD70: BAS029 | AE70: BAS030 | AF70: BAS031 | AG70: BAS032 | AH70: BAS033 | AI70: BAS034 | AJ70: BAS035 | AK70: BAS036 | AL70: BAS037 | AM70: BAS038 | AN70: BAS039 | AO70: BAS040 | AP70: BAS041 | AQ70: BAS042 | AR70: BAS043 | AS70: BAS044 | AT70: BAS045 | AU70: BAS046 | AV70: BAS047 | AW70: BAS048 | AX70: BAS049 | AY70: BAS050 | AZ70: BAS051 | BA70: BAS052 | BB70: BAS053 | BC70: BAS054 | BD70: BAS055 | BE70: BAS056 | BF70: BAS057 | BG70: BAS058 | BH70: BAS059 | BI70: BAS060 | BJ70: BAS061 | BK70: BAS062 | BL70: BAS063 | BM70: BAS064 | BN70: BAS065 | BO70: BAS066 | BP70: BAS067 | BQ70: BAS068 | BR70: BAS069 | BS70: BAS070 | BT70: BAS071 | BU70: BAS072 | BV70: BAS073 | BW70: BAS074 | BX70: BAS075 | BY70: BAS076 | BZ70: BAS077 | CA70: BAS078 | CB70: BAS079 | CC70: BAS080 | CD70: BAS081 | CE70: BAS082 | CF70: BAS083 | CG70: BAS084 | CH70: BAS085 | CI70: BAS086 | CJ70: BAS087 | CK70: BAS088 | CL70: BAS089 | CM70: BAS090 | CN70: BAS091 | CO70: BAS092 | CP70: BAS093 | CQ70: BAS094 | CR70: BAS095 | CS70: BAS096 | CT70: BAS097 | CU70: BAS098 | CV70: BAS099 | CW70: BAS100 | CX70: BAS101 | CY70: BAS102 | CZ70: BAS103 | DA70: BAS104 | DB70: BAS105 | DC70: BAS106 | DD70: BAS107 | DE70: BAS108 | DF70: BAS109 | DG70: BAS110 | DH70: BAS111 | DI70: BAS112 | DJ70: BAS113 | DK70: BAS114 | DL70: BAS115 | DM70: BAS116 | DN70: BAS117 | DO70: BAS118 | DP70: BAS119 | DQ70: BAS120 | DR70: BAS121 | DS70: BAS122 | DT70: BAS123 | DU70: BAS124 | DV70: BAS125 | DW70: BAS126 | DX70: BAS127 | DY70: BAS128 | DZ70: BAS129 | EA70: BAS130 | EB70: BAS131 | EC70: BAS132 | ED70: BAS133 | EE70: BAS134 | EF70: BAS135 | EG70: BAS136 | EH70: BAS137 | EI70: BAS138 | EJ70: BAS139 | EK70: BAS140 | EL70: BAS141 | EM70: BAS142 | EN70: BAS143 | EO70: BAS144 | EP70: BAS145 | EQ70: BAS146 | ER70: BAS147 | ES70: BAS148 | ET70: BAS149 | EU70: BAS150 | EV70: BAS151 | EW70: BAS152 | EX70: BAS153 | EY70: BAS154 | EZ70: BAS155 | FA70: BAS156 | FB70: BAS157 | FC70: BAS158 | FD70: BAS159 | FE70: BAS160 | FF70: BAS161 | FG70: BAS162 | FH70: BAS163 | FI70: BAS164 | FJ70: BAS165 | FK70: BAS166 | FL70: BAS167 | FM70: BAS168 | FN70: BAS169 | FO70: BAS170 | FP70: BAS171 | FQ70: BAS172 | FR70: BAS173 | FS70: BAS174 | FT70: BAS175 | FU70: BAS176 | FV70: BAS177 | FW70: BAS178 | FX70: BAS179 | FY70: BAS180 | FZ70: BAS181 | GA70: BAS182 | GB70: BAS183 | GC70: BAS184 | GD70: BAS185 | GE70: BAS186 | GF70: BAS187 | GG70: BAS188 | GH70: BAS189 | GI70: BAS190 | GJ70: BAS191 | GK70: BAS192 | GL70: BAS193 | GM70: BAS194 | GN70: BAS195 | GO70: BAS196 | GP70: BAS197 | GQ70: BAS198 | GR70: BAS199 | GS70: BAS200 | GT70: BAS201 | GU70: BAS202 | GV70: BAS203 | GW70: BAS204 | GX70: BAS205 | GY70: BAS206 | GZ70: BAS207 | HA70: BAS208 | HB70: BAS209 | HC70: BAS210 | HD70: BAS211 | HE70: BAS212 | HF70: BAS213 | HG70: BAS214 | HH70: BAS215 | HI70: BAS216 | HJ70: BAS217 | HK70: BAS218 | HL70: BAS219 | HM70: BAS220 | HN70: BAS221 | HO70: BAS222 | HP70: BAS223 | HQ70: BAS224 | HR70: BAS225 | HS70: BAS226 | HT70: BAS227 | HU70: BAS228 | HV70: BAS229 | HW70: BAS230
B71: =IF(B70=B50,"SI","NO") -> SI | C71: SI | D71: SI | E71: SI | F71: SI | G71: SI | H71: SI | I71: SI | J71: SI | K71: SI | L71: SI | M71: SI | N71: SI | O71: SI | P71: SI | Q71: SI | R71: SI | S71: SI | T71: SI | U71: SI | V71: SI | W71: SI | X71: SI | Y71: SI | Z71: SI | AA71: SI | AB71: SI | AC71: SI | AD71: SI | AE71: SI | AF71: SI | AG71: SI | AH71: =IF(AH70=AH50,"SI","NO") -> SI | AI71: SI | AJ71: SI | AK71: SI | AL71: SI | AM71: SI | AN71: SI | AO71: SI | AP71: SI | AQ71: SI | AR71: SI | AS71: SI | AT71: SI | AU71: SI | AV71: SI | AW71: SI | AX71: SI | AY71: SI | AZ71: SI | BA71: SI | BB71: SI | BC71: SI | BD71: SI | BE71: SI | BF71: SI | BG71: SI | BH71: SI | BI71: SI | BJ71: SI | BK71: SI | BL71: SI | BM71: SI | BN71: =IF(BN70=BN50,"SI","NO") -> SI | BO71: SI | BP71: SI | BQ71: SI | BR71: SI | BS71: SI | BT71: SI | BU71: SI | BV71: SI | BW71: SI | BX71: SI | BY71: SI | BZ71: SI | CA71: SI | CB71: SI | CC71: SI | CD71: SI | CE71: SI | CF71: SI | CG71: SI | CH71: SI | CI71: SI | CJ71: SI | CK71: SI | CL71: SI | CM71: SI | CN71: SI | CO71: SI | CP71: SI | CQ71: SI | CR71: SI | CS71: SI | CT71: =IF(CT70=CT50,"SI","NO") -> SI | CU71: SI | CV71: SI | CW71: SI | CX71: SI | CY71: SI | CZ71: SI | DA71: SI | DB71: SI | DC71: SI | DD71: SI | DE71: SI | DF71: SI | DG71: SI | DH71: SI | DI71: SI | DJ71: SI | DK71: SI | DL71: SI | DM71: SI | DN71: SI | DO71: SI | DP71: SI | DQ71: SI | DR71: SI | DS71: SI | DT71: SI | DU71: SI | DV71: SI | DW71: SI | DX71: SI | DY71: SI | DZ71: SI | EA71: SI | EB71: SI | EC71: SI | ED71: SI | EE71: SI | EF71: SI | EG71: SI | EH71: SI | EI71: SI | EJ71: SI | EK71: SI | EL71: SI | EM71: SI | EN71: SI | EO71: SI | EP71: SI | EQ71: SI | ER71: SI | ES71: SI | ET71: SI | EU71: SI | EV71: SI | EW71: SI | EX71: SI | EY71: SI | EZ71: SI | FA71: SI | FB71: SI | FC71: SI | FD71: SI | FE71: SI | FF71: =IF(FF70=FF50,"SI","NO") -> SI | FG71: SI | FH71: SI | FI71: SI | FJ71: SI | FK71: SI | FL71: SI | FM71: SI | FN71: SI | FO71: SI | FP71: SI | FQ71: SI | FR71: SI | FS71: SI | FT71: SI | FU71: SI | FV71: SI | FW71: SI | FX71: SI | FY71: SI | FZ71: SI | GA71: SI | GB71: SI | GC71: SI | GD71: SI | GE71: SI | GF71: SI | GG71: SI | GH71: SI | GI71: SI | GJ71: SI | GK71: SI | GL71: SI | GM71: SI | GN71: SI | GO71: SI | GP71: SI | GQ71: SI | GR71: SI | GS71: SI | GT71: SI | GU71: SI | GV71: SI | GW71: SI | GX71: SI | GY71: SI | GZ71: SI | HA71: SI | HB71: SI | HC71: SI | HD71: SI | HE71: SI | HF71: SI | HG71: SI | HH71: SI | HI71: SI | HJ71: SI | HK71: SI | HL71: SI | HM71: SI | HN71: SI | HO71: SI | HP71: SI | HQ71: SI | HR71: =IF(HR70=HR50,"SI","NO") -> SI | HS71: SI | HT71: SI | HU71: SI | HV71: SI | HW71: SI
A73: POBLACION MALARIA
A75: POBLACION LEISHMANIA
A78: POBLACION BARTONELA
A81: POBLACION GENERAL

Sheet Datos (hidden)
B9: ANO | D9: MESES | F9: COD_RED | G9: DESC_RED | H9: CONCATENAR | J9: COD_RED | K9: COD_MIC | L9: DESC_MICRO | M9: CONCATENAR | O9: COD_ESTAB | P9: DESC_ESTAB | Q9: COD_RED | R9: COD_MIC | S9: COD_PROV | T9: COD_DIST | U9: REDMIC | V9: CONCATENAR | X9: COD_PROV | Y9: DESC_PROV | Z9: CONCATENAR | AB9: COD_PROV | AC9: COD_DIST | AD9: DESC_DIST | AE9: PROVDIST | AF9: CONCATENAR
B10: 2024 | D10: 01-Enero | F10: 00 | G10: NO TIENE ASIGNADO NINGUNA RED | H10: =CONCATENATE(F10," - ",G10) -> 00 - NO TIENE ASIGNADO NINGUNA RED | J10: 00 | K10: 00 | L10: NO PERTENECE A NINGUNA MICRORED | M10: =CONCATENATE(J10,K10," - ",L10) -> 0000 - NO PERTENECE A NINGUNA MICRORED | O10: 000000000 | P10: (All) | Q10: 00 | R10: 00 | U10: =CONCATENATE(Q10,R10) -> 0000 | V10: =CONCATENATE(O10," - ",P10) -> 000000000 - (All) | X10: 00 | Y10: (All) | Z10: =CONCATENATE(X10," - ",Y10) -> 00 - (All) | AB10: 01 | AC10: 00 | AD10: (All) | AE10: =CONCATENATE(AB10,AC10) -> 0100 | AF10: =CONCATENATE(AB10,AC10," - ",AD10) -> 0100 - (All)
D11: 02-Febrero | F11: 01 | G11: CUSCO SUR | H11: =CONCATENATE(F11," - ",G11) -> 01 - CUSCO SUR | J11: 00 | K11: 99 | L11: (All) | M11: 0099 - (All) | O11: 000028190 | P11: SAMUE CUSCO | Q11: 00 | R11: 00 | S11: 01 | T11: 01 | U11: =CONCATENATE(Q11,R11) -> 0000 | V11: =CONCATENATE(O11," - ",P11) -> 000028190 - SAMUE CUSCO | X11: 01 | Y11: CUSCO | Z11: =CONCATENATE(X11," - ",Y11) -> 01 - CUSCO | AB11: 01 | AC11: 01 | AD11: CUSCO | AE11: =CONCATENATE(AB11,AC11) -> 0101 | AF11: =CONCATENATE(AB11,AC11," - ",AD11) -> 0101 - CUSCO
D12: 03-Marzo | F12: 02 | G12: CUSCO NORTE | H12: 02 - CUSCO NORTE | J12: 01 | K12: 00 | L12: NO PERTENECE A NINGUNA MICRORED | M12: 0100 - NO PERTENECE A NINGUNA MICRORED | O12: 000002289 | P12: HOSPITAL DE APOYO DEPARTAMENTAL CUSCO | Q12: 00 | R12: 00 | S12: 01 | T12: 01 | U12: 0000 | V12: 000002289 - HOSPITAL DE APOYO DEPARTAMENTAL CUSCO | X12: 02 | Y12: ACOMAYO | Z12: =CONCATENATE(X12," - ",Y12) -> 02 - ACOMAYO | AB12: 01 | AC12: 02 | AD12: CCORCA | AE12: 0102 | AF12: 0102 - CCORCA
D13: 04-Abril | F13: 03 | G13: LA CONVENCION | H13: 03 - LA CONVENCION | J13: 01 | K13: 16 | L13: CUSCO | M13: 0116 - CUSCO | O13: 000002305 | P13: ANTONIO LORENA DEL CUSCO | Q13: 00 | R13: 00 | S13: 01 | T13: 06 | U13: 0000 | V13: 000002305 - ANTONIO LORENA DEL CUSCO | X13: 03 | Y13: ANTA | Z13: 03 - ANTA | AB13: 01 | AC13: 03 | AD13: POROY | AE13: 0103 | AF13: 0103 - POROY
D14: 05-Mayo | F14: 04 | G14: CANAS-CANCHIS-ESPINAR | H14: 04 - CANAS-CANCHIS-ESPINAR | J14: 01 | K14: 03 | L14: PARURO | M14: 0103 - PARURO | O14: 999999999 | P14: (All) | Q14: 00 | R14: 99 | U14: 0099 | V14: 999999999 - (All) | X14: 04 | Y14: CALCA | Z14: 04 - CALCA | AB14: 01 | AC14: 04 | AD14: SAN JERONIMO | AE14: 0104 | AF14: 0104 - SAN JERONIMO
D15: 06-Junio | F15: 05 | G15: KIMBIRI PICHARI | H15: 05 - KIMBIRI PICHARI | J15: 01 | K15: 06 | L15: PAUCARTAMBO | M15: 0106 - PAUCARTAMBO | O15: 000025210 | P15: TUPAC AMARU | Q15: 01 | R15: 00 | S15: 01 | T15: 05 | U15: 0100 | V15: 000025210 - TUPAC AMARU | X15: 05 | Y15: CANAS | Z15: 05 - CANAS | AB15: 01 | AC15: 05 | AD15: SAN SEBASTIAN | AE15: 0105 | AF15: 0105 - SAN SEBASTIAN
D16: 07-Julio | F16: 06 | G16: CHUMBIVILCAS | H16: 06 - CHUMBIVILCAS | J16: 01 | K16: 12 | L16: URCOS | M16: 0112 - URCOS | O16: 000000000 | P16: (All) | Q16: 01 | R16: 03 | U16: 0103 | V16: 000000000 - (All) | X16: 06 | Y16: CANCHIS | Z16: 06 - CANCHIS | AB16: 01 | AC16: 06 | AD16: SANTIAGO | AE16: 0106 | AF16: 0106 - SANTIAGO
D17: 08-Agosto | F17: 99 | G17: (All) | H17: 99 - (All) | J17: 01 | K17: 13 | L17: ACOMAYO | M17: 0113 - ACOMAYO | O17: 000002499 | P17: PARURO | Q17: 01 | R17: 03 | S17: 10 | T17: 01 | U17: 0103 | V17: 000002499 - PARURO | X17: 07 | Y17: CHUMBIVILCAS | Z17: 07 - CHUMBIVILCAS | AB17: 01 | AC17: 07 | AD17: SAYLLA | AE17: 0107 | AF17: 0107 - SAYLLA
D18: 09-Setiembre | J18: 01 | K18: 15 | L18: OCONGATE | M18: 0115 - OCONGATE | O18: 000002500 | P18: ACCHA | Q18: 01 | R18: 03 | S18: 10 | T18: 02 | U18: 0103 | V18: 000002500 - ACCHA | X18: 08 | Y18: ESPINAR | Z18: 08 - ESPINAR | AB18: 01 | AC18: 08 | AD18: WANCHAQ | AE18: 0108 | AF18: 0108 - WANCHAQ
D19: 10-Octubre | J19: 01 | K19: 99 | L19: (All) | M19: 0199 - (All) | O19: 000002501 | P19: CCAPI | Q19: 01 | R19: 03 | S19: 10 | T19: 03 | U19: 0103 | V19: 000002501 - CCAPI | X19: 09 | Y19: LA CONVENCION | Z19: 09 - LA CONVENCION | AB19: 02 | AC19: 00 | AD19: (All) | AE19: 0200 | AF19: 0200 - (All)
D20: 11-Noviembre | F20: EJECUTORAS | J20: 02 | K20: 01 | L20: BELEMPAMPA | M20: 0201 - BELEMPAMPA | O20: 000002502 | P20: CCOYABAMBA | Q20: 01 | R20: 03 | S20: 10 | T20: 03 | U20: 0103 | V20: 000002502 - CCOYABAMBA | X20: 10 | Y20: PARURO | Z20: 10 - PARURO | AB20: 02 | AC20: 01 | AD20: ACOMAYO | AE20: 0201 | AF20: 0201 - ACOMAYO
D21: 12-Diciembre | F21: COD_RED | G21: DESC_RED | H21: CONCATENAR | J21: 02 | K21: 02 | L21: WANCHAQ | M21: 0202 - WANCHAQ | O21: 000002503 | P21: COLCHA | Q21: 01 | R21: 03 | S21: 10 | T21: 04 | U21: 0103 | V21: 000002503 - COLCHA | X21: 11 | Y21: PAUCARTAMBO | Z21: 11 - PAUCARTAMBO | AB21: 02 | AC21: 02 | AD21: ACOPIA | AE21: 0202 | AF21: 0202 - ACOPIA
F22: 01 | G22: HOSPITAL REGIONAL CUSCO | H22: =CONCATENATE(F22," - ",G22) -> 01 - HOSPITAL REGIONAL CUSCO | J22: 02 | K22: 03 | L22: ANTA | M22: 0203 - ANTA | O22: 000002504 | P22: HUANOQUITE | Q22: 01 | R22: 03 | S22: 10 | T22: 05 | U22: 0103 | V22: 000002504 - HUANOQUITE | X22: 12 | Y22: QUISPICANCHI | Z22: 12 - QUISPICANCHI | AB22: 02 | AC22: 03 | AD22: ACOS | AE22: 0203 | AF22: 0203 - ACOS
F23: 02 | G23: HOSPITAL ANTONIO LORENA | H23: =CONCATENATE(F23," - ",G23) -> 02 - HOSPITAL ANTONIO LORENA | J23: 02 | K23: 04 | L23: LIMATAMBO | M23: 0204 - LIMATAMBO | O23: 000002505 | P23: OMACHA | Q23: 01 | R23: 03 | S23: 10 | T23: 06 | U23: 0103 | V23: 000002505 - OMACHA | X23: 13 | Y23: URUBAMBA | Z23: 13 - URUBAMBA | AB23: 02 | AC23: 04 | AD23: MOSOC LLACTA | AE23: 0204 | AF23: 0204 - MOSOC LLACTA
F24: 03 | G24: CUSCO NORTE | H24: 03 - CUSCO NORTE | J24: 02 | K24: 05 | L24: PISAC | M24: 0205 - PISAC | O24: 000002506 | P24: ANTAPALLPA | Q24: 01 | R24: 03 | S24: 10 | T24: 06 | U24: 0103 | V24: 000002506 - ANTAPALLPA | AB24: 02 | AC24: 05 | AD24: POMACANCHI | AE24: 0205 | AF24: 0205 - POMACANCHI
F25: 04 | G25: CUSCO SUR | H25: 04 - CUSCO SUR | J25: 02 | K25: 06 | L25: CALCA | M25: 0206 - CALCA | O25: 000002507 | P25: PACCARECTAMBO | Q25: 01 | R25: 03 | S25: 10 | T25: 07 | U25: 0103 | V25: 000002507 - PACCARECTAMBO | AB25: 02 | AC25: 06 | AD25: RONDOCAN | AE25: 0206 | AF25: 0206 - RONDOCAN
F26: 05 | G26: LA CONVENCION | H26: 05 - LA CONVENCION | J26: 02 | K26: 07 | L26: URUBAMBA | M26: 0207 - URUBAMBA | O26: 000002509 | P26: YAURISQUE | Q26: 01 | R26: 03 | S26: 10 | T26: 09 | U26: 0103 | V26: 000002509 - YAURISQUE | AB26: 02 | AC26: 07 | AD26: SANGARARA | AE26: 0207 | AF26: 0207 - SANGARARA
F27: 06 | G27: HOSPITAL QUILLABAMBA | H27: 06 - HOSPITAL QUILLABAMBA | J27: 02 | K27: 08 | L27: YANATILE | M27: 0208 - YANATILE | O27: 000006978 | P27: CCOCHIRIHUAY | Q27: 01 | R27: 03 | S27: 10 | T27: 04 | U27: 0103 | V27: 000006978 - CCOCHIRIHUAY | AB27: 03 | AC27: 00 | AD27: (All) | AE27: 0300 | AF27: 0300 - (All)
F28: 07 | G28: CANAS CANCHIS ESPINAR | H28: 07 - CANAS CANCHIS ESPINAR | J28: 02 | K28: 09 | L28: SIETE CUARTONES | M28: 0209 - SIETE CUARTONES | O28: 000007147 | P28: PUESTO DE SALUD DE HUASQUILLAY | Q28: 01 | R28: 03 | S28: 10 | T28: 06 | U28: 0103 | V28: 000007147 - PUESTO DE SALUD DE HUASQUILLAY | AB28: 03 | AC28: 01 | AD28: ANTA | AE28: 0301 | AF28: 0301 - ANTA
F29: 08 | G29: HOSPITAL SICUANI | H29: 08 - HOSPITAL SICUANI | J29: 02 | K29: 99 | L29: (All) | M29: 0299 - (All) | O29: 000012924 | P29: SAHUA SAHUA | Q29: 01 | R29: 03 | S29: 10 | T29: 06 | U29: 0103 | V29: 000012924 - SAHUA SAHUA | AB29: 03 | AC29: 02 | AD29: ANCAHUASI | AE29: 0302 | AF29: 0302 - ANCAHUASI
F30: 09 | G30: HOSPITAL ESPINAR | H30: 09 - HOSPITAL ESPINAR | J30: 03 | K30: 00 | L30: NO PERTENECE A NINGUNA MICRORED | M30: 0300 - NO PERTENECE A NINGUNA MICRORED | O30: 000000000 | P30: (All) | Q30: 01 | R30: 06 | U30: 0106 | V30: 000000000 - (All) | AB30: 03 | AC30: 03 | AD30: CACHIMAYO | AE30: 0303 | AF30: 0303 - CACHIMAYO
F31: 10 | G31: KIMBIRI PICHARI | H31: 10 - KIMBIRI PICHARI | J31: 03 | K31: 01 | L31: SANTA ANA | M31: 0301 - SANTA ANA | O31: 000002510 | P31: PAUCARTAMBO | Q31: 01 | R31: 06 | S31: 11 | T31: 01 | U31: 0106 | V31: 000002510 - PAUCARTAMBO | AB31: 03 | AC31: 04 | AD31: CHINCHAYPUJIO | AE31: 0304 | AF31: 0304 - CHINCHAYPUJIO
F32: 11 | G32: CHUMBIVILCAS | H32: 11 - CHUMBIVILCAS | J32: 03 | K32: 02 | L32: MARANURA | M32: 0302 - MARANURA | O32: 000002511 | P32: MOLLOMARCA | Q32: 01 | R32: 06 | S32: 11 | T32: 01 | U32: 0106 | V32: 000002511 - MOLLOMARCA | AB32: 03 | AC32: 05 | AD32: HUAROCONDO | AE32: 0305 | AF32: 0305 - HUAROCONDO
F33: 99 | G33: (ALL) | H33: =CONCATENATE(F33," - ",G33) -> 99 - (ALL) | J33: 03 | K33: 03 | L33: QUELLOUNO | M33: 0303 - QUELLOUNO | O33: 000002512 | P33: CAICAY | Q33: 01 | R33: 06 | S33: 11 | T33: 02 | U33: 0106 | V33: 000002512 - CAICAY | AB33: 03 | AC33: 06 | AD33: LIMATAMBO | AE33: 0306 | AF33: 0306 - LIMATAMBO
J34: 03 | K34: 04 | L34: KITENI | M34: 0304 - KITENI | O34: 000002513 | P34: HUASAC | Q34: 01 | R34: 06 | S34: 11 | T34: 02 | U34: 0106 | V34: 000002513 - HUASAC | AB34: 03 | AC34: 07 | AD34: MOLLEPATA | AE34: 0307 | AF34: 0307 - MOLLEPATA
J35: 03 | K35: 05 | L35: KAMISEA | M35: 0305 - KAMISEA | O35: 000002514 | P35: CHALLABAMBA | Q35: 01 | R35: 06 | S35: 11 | T35: 03 | U35: 0106 | V35: 000002514 - CHALLABAMBA | AB35: 03 | AC35: 08 | AD35: PUCYURA | AE35: 0308 | AF35: 0308 - PUCYURA
J36: 03 | K36: 06 | L36: PUCYURA | M36: 0306 - PUCYURA | O36: 000002516 | P36: COLQUEPATA | Q36: 01 | R36: 06 | S36: 11 | T36: 04 | U36: 0106 | V36: 000002516 - COLQUEPATA | AB36: 03 | AC36: 09 | AD36: ZURITE | AE36: 0309 | AF36: 0309 - ZURITE
J37: 03 | K37: 07 | L37: PALMA REAL | M37: 0307 - PALMA REAL | O37: 000002517 | P37: PICHIHUA COLQUEPATA | Q37: 01 | R37: 06 | S37: 11 | T37: 04 | U37: 0106 | V37: 000002517 - PICHIHUA COLQUEPATA | AB37: 04 | AC37: 00 | AD37: (All) | AE37: 0400 | AF37: 0400 - (All)
J38: 03 | K38: 99 | L38: (All) | M38: 0399 - (All) | O38: 000002518 | P38: VIZCOCHONI | Q38: 01 | R38: 06 | S38: 11 | T38: 04 | U38: 0106 | V38: 000002518 - VIZCOCHONI | AB38: 04 | AC38: 01 | AD38: CALCA | AE38: 0401 | AF38: 0401 - CALCA
J39: 04 | K39: 00 | L39: NO PERTENECE A NINGUNA MICRORED | M39: 0400 - NO PERTENECE A NINGUNA MICRORED | O39: 000002519 | P39: AYRE | Q39: 01 | R39: 06 | S39: 11 | T39: 04 | U39: 0106 | V39: 000002519 - AYRE | AB39: 04 | AC39: 02 | AD39: COYA | AE39: 0402 | AF39: 0402 - COYA
J40: 04 | K40: 01 | L40: YANAOCA | M40: 0401 - YANAOCA | O40: 000002520 | P40: HUANCARANI | Q40: 01 | R40: 06 | S40: 11 | T40: 05 | U40: 0106 | V40: 000002520 - HUANCARANI | AB40: 04 | AC40: 03 | AD40: LAMAY | AE40: 0403 | AF40: 0403 - LAMAY
J41: 04 | K41: 02 | L41: EL DESCANSO | M41: 0402 - EL DESCANSO | O41: 000002521 | P41: PILCOPATA | Q41: 01 | R41: 06 | S41: 11 | T41: 06 | U41: 0106 | V41: 000002521 - PILCOPATA | AB41: 04 | AC41: 04 | AD41: LARES | AE41: 0404 | AF41: 0404 - LARES
J42: 04 | K42: 03 | L42: COMBAPATA | M42: 0403 - COMBAPATA | O42: 000002522 | P42: PATRIA | Q42: 01 | R42: 06 | S42: 11 | T42: 06 | U42: 0106 | V42: 000002522 - PATRIA | AB42: 04 | AC42: 05 | AD42: PISAC | AE42: 0405 | AF42: 0405 - PISAC
J43: 04 | K43: 04 | L43: TECHO OBRERO | M43: 0404 - TECHO OBRERO | O43: 000006979 | P43: TOCRA | Q43: 01 | R43: 06 | S43: 11 | T43: 04 | U43: 0106 | V43: 000006979 - TOCRA | AB43: 04 | AC43: 06 | AD43: SAN SALVADOR | AE43: 0406 | AF43: 0406 - SAN SALVADOR
J44: 04 | K44: 05 | L44: PAMPAPHALLA | M44: 0405 - PAMPAPHALLA | O44: 000010077 | P44: PAUCARTAMBO -ESSALUD | Q44: 01 | R44: 06 | S44: 11 | T44: 01 | U44: 0106 | V44: 000010077 - PAUCARTAMBO -ESSALUD | AB44: 04 | AC44: 07 | AD44: TARAY | AE44: 0407 | AF44: 0407 - TARAY
J45: 04 | K45: 06 | L45: YAURI | M45: 0406 - YAURI | O45: 000033777 | P45: MENTAL COMUNITARIO VIRGEN DEL ROSARIO | Q45: 01 | R45: 06 | S45: 11 | T45: 01 | U45: 0106 | V45: 000033777 - MENTAL COMUNITARIO VIRGEN DEL ROSARIO | AB45: 04 | AC45: 08 | AD45: YANATILE | AE45: 0408 | AF45: 0408 - YANATILE
J46: 04 | K46: 99 | L46: (All) | M46: 0499 - (All) | O46: 000000000 | P46: (All) | Q46: 01 | R46: 12 | U46: 0112 | V46: 000000000 - (All) | AB46: 05 | AC46: 00 | AD46: (All) | AE46: 0500 | AF46: 0500 - (All)
J47: 05 | K47: 00 | L47: NO PERTENECE A NINGUNA MICRORED | M47: 0500 - NO PERTENECE A NINGUNA MICRORED | O47: 000002523 | P47: URCOS | Q47: 01 | R47: 12 | S47: 12 | T47: 01 | U47: 0112 | V47: 000002523 - URCOS | AB47: 05 | AC47: 01 | AD47: YANAOCA | AE47: 0501 | AF47: 0501 - YANAOCA
J48: 05 | K48: 01 | L48: KIMBIRI | M48: 0501 - KIMBIRI | O48: 000002525 | P48: ANDAHUAYLILLAS | Q48: 01 | R48: 12 | S48: 12 | T48: 02 | U48: 0112 | V48: 000002525 - ANDAHUAYLILLAS | AB48: 05 | AC48: 02 | AD48: CHECCA | AE48: 0502 | AF48: 0502 - CHECCA
J49: 05 | K49: 02 | L49: PICHARI | M49: 0502 - PICHARI | O49: 000002530 | P49: CUSIPATA | Q49: 01 | R49: 12 | S49: 12 | T49: 06 | U49: 0112 | V49: 000002530 - CUSIPATA | AB49: 05 | AC49: 03 | AD49: KUNTURKANKI | AE49: 0503 | AF49: 0503 - KUNTURKANKI
J50: 05 | K50: 99 | L50: (All) | M50: 0599 - (All) | O50: 000002532 | P50: HUARO | Q50: 01 | R50: 12 | S50: 12 | T50: 07 | U50: 0112 | V50: 000002532 - HUARO | AB50: 05 | AC50: 04 | AD50: LANGUI | AE50: 0504 | AF50: 0504 - LANGUI
J51: 06 | K51: 00 | L51: NO PERTENECE A NINGUNA MICRORED | M51: 0600 - NO PERTENECE A NINGUNA MICRORED | O51: 000002533 | P51: URPAY | Q51: 01 | R51: 12 | S51: 12 | T51: 07 | U51: 0112 | V51: 000002533 - URPAY | AB51: 05 | AC51: 05 | AD51: LAYO | AE51: 0505 | AF51: 0505 - LAYO
J52: 06 | K52: 09 | L52: SANTO TOMAS | M52: 0609 - SANTO TOMAS | O52: 000002534 | P52: LUCRE | Q52: 01 | R52: 12 | S52: 12 | T52: 08 | U52: 0112 | V52: 000002534 - LUCRE | AB52: 05 | AC52: 06 | AD52: PAMPAMARCA | AE52: 0506 | AF52: 0506 - PAMPAMARCA
J53: 06 | K53: 01 | L53: LIVITACA | M53: 0601 - LIVITACA | O53: 000002537 | P53: OROPESA | Q53: 01 | R53: 12 | S53: 12 | T53: 11 | U53: 0112 | V53: 000002537 - OROPESA | AB53: 05 | AC53: 07 | AD53: QUEHUE | AE53: 0507 | AF53: 0507 - QUEHUE
J54: 06 | K54: 99 | L54: (All) | M54: 0699 - (All) | O54: 000002538 | P54: QUIQUIJANA | Q54: 01 | R54: 12 | S54: 12 | T54: 12 | U54: 0112 | V54: 000002538 - QUIQUIJANA | AB54: 05 | AC54: 08 | AD54: TUPAC AMARU | AE54: 0508 | AF54: 0508 - TUPAC AMARU
J55: 99 | K55: 99 | L55: (All) | M55: 9999 - (All) | O55: 000002539 | P55: CCOLCA | Q55: 01 | R55: 12 | S55: 12 | T55: 12 | U55: 0112 | V55: 000002539 - CCOLCA | AB55: 06 | AC55: 00 | AD55: (All) | AE55: 0600 | AF55: 0600 - (All)
O56: 000006980 | P56: CHILLIHUANI | Q56: 01 | R56: 12 | S56: 12 | T56: 06 | U56: 0112 | V56: 000006980 - CHILLIHUANI | AB56: 06 | AC56: 01 | AD56: SICUANI | AE56: 0601 | AF56: 0601 - SICUANI
O57: 000008911 | P57: HUARA HUARA | Q57: 01 | R57: 12 | S57: 12 | T57: 05 | U57: 0112 | V57: 000008911 - HUARA HUARA | AB57: 06 | AC57: 02 | AD57: CHECACUPE | AE57: 0602 | AF57: 0602 - CHECACUPE
O58: 000011747 | P58: POSTA MEDICA POLICIAL PUCUTO | Q58: 01 | R58: 12 | S58: 12 | T58: 07 | U58: 0112 | V58: 000011747 - POSTA MEDICA POLICIAL PUCUTO | AB58: 06 | AC58: 03 | AD58: COMBAPATA | AE58: 0603 | AF58: 0603 - COMBAPATA
O59: 000026385 | P59: URCOS - ESSALUD | Q59: 01 | R59: 12 | S59: 12 | T59: 01 | U59: 0112 | V59: 000026385 - URCOS - ESSALUD | AB59: 06 | AC59: 04 | AD59: MARANGANI | AE59: 0604 | AF59: 0604 - MARANGANI
O60: 000030708 | P60: MENTAL COMUNITARIO HUARO | Q60: 01 | R60: 12 | S60: 12 | T60: 07 | U60: 0112 | V60: 000030708 - MENTAL COMUNITARIO HUARO | AB60: 06 | AC60: 05 | AD60: PITUMARCA | AE60: 0605 | AF60: 0605 - PITUMARCA
O61: 000000000 | P61: (All) | Q61: 01 | R61: 13 | U61: 0113 | V61: 000000000 - (All) | AB61: 06 | AC61: 06 | AD61: SAN PABLO | AE61: 0606 | AF61: 0606 - SAN PABLO
O62: 000002317 | P62: ACOMAYO | Q62: 01 | R62: 13 | S62: 02 | T62: 01 | U62: 0113 | V62: 000002317 - ACOMAYO | AB62: 06 | AC62: 07 | AD62: SAN PEDRO | AE62: 0607 | AF62: 0607 - SAN PEDRO
O63: 000002318 | P63: ACOPIA | Q63: 01 | R63: 13 | S63: 02 | T63: 02 | U63: 0113 | V63: 000002318 - ACOPIA | AB63: 06 | AC63: 08 | AD63: TINTA | AE63: 0608 | AF63: 0608 - TINTA
O64: 000002319 | P64: ACOS | Q64: 01 | R64: 13 | S64: 02 | T64: 03 | U64: 0113 | V64: 000002319 - ACOS | AB64: 07 | AC64: 00 | AD64: (All) | AE64: 0700 | AF64: 0700 - (All)
O65: 000002321 | P65: POMACANCHI | Q65: 01 | R65: 13 | S65: 02 | T65: 05 | U65: 0113 | V65: 000002321 - POMACANCHI | AB65: 07 | AC65: 01 | AD65: SANTO TOMAS | AE65: 0701 | AF65: 0701 - SANTO TOMAS
O66: 000002322 | P66: SAN JUAN DE POMACANCHI | Q66: 01 | R66: 13 | S66: 02 | T66: 05 | U66: 0113 | V66: 000002322 - SAN JUAN DE POMACANCHI | AB66: 07 | AC66: 02 | AD66: CAPACMARCA | AE66: 0702 | AF66: 0702 - CAPACMARCA
O67: 000002324 | P67: PUESTO DE SALUD SANGARARA | Q67: 01 | R67: 13 | S67: 02 | T67: 07 | U67: 0113 | V67: 000002324 - PUESTO DE SALUD SANGARARA | AB67: 07 | AC67: 03 | AD67: CHAMACA | AE67: 0703 | AF67: 0703 - CHAMACA
O68: 000002325 | P68: PUESTO DE SALUD MARCACONGA | Q68: 01 | R68: 13 | S68: 02 | T68: 07 | U68: 0113 | V68: 000002325 - PUESTO DE SALUD MARCACONGA | AB68: 07 | AC68: 04 | AD68: COLQUEMARCA | AE68: 0704 | AF68: 0704 - COLQUEMARCA
O69: 000002508 | P69: PILLPINTO | Q69: 01 | R69: 13 | S69: 10 | T69: 08 | U69: 0113 | V69: 000002508 - PILLPINTO | AB69: 07 | AC69: 05 | AD69: LIVITACA | AE69: 0705 | AF69: 0705 - LIVITACA
O70: 000010076 | P70: ACOMAYO - ESSALUD | Q70: 01 | R70: 13 | S70: 02 | T70: 01 | U70: 0113 | V70: 000010076 - ACOMAYO - ESSALUD | AB70: 07 | AC70: 06 | AD70: LLUSCO | AE70: 0706 | AF70: 0706 - LLUSCO
N71: 0 | O71: 000012926 | P71: SANTA LUCIA | Q71: 01 | R71: 13 | S71: 02 | T71: 05 | U71: 0113 | V71: 000012926 - SANTA LUCIA | AB71: 07 | AC71: 07 | AD71: QUIÑOTA | AE71: 0707 | AF71: 0707 - QUIÑOTA
N72: 1 | O72: 000000000 | P72: (All) | Q72: 01 | R72: 15 | U72: 0115 | V72: 000000000 - (All) | AB72: 07 | AC72: 08 | AD72: VELILLE | AE72: 0708 | AF72: 0708 - VELILLE
N73: 2 | O73: 000002524 | P73: PAMPACAMARA | Q73: 01 | R73: 15 | S73: 12 | T73: 05 | U73: 0115 | V73: 000002524 - PAMPACAMARA | AB73: 08 | AC73: 00 | AD73: (All) | AE73: 0800 | AF73: 0800 - (All)
N74: 3 | O74: 000002526 | P74: QUINCE MIL | Q74: 01 | R74: 15 | S74: 12 | T74: 03 | U74: 0115 | V74: 000002526 - QUINCE MIL | AB74: 08 | AC74: 01 | AD74: ESPINAR | AE74: 0801 | AF74: 0801 - ESPINAR
N75: 4 | O75: 000002527 | P75: CCARHUAYO | Q75: 01 | R75: 15 | S75: 12 | T75: 04 | U75: 0115 | V75: 000002527 - CCARHUAYO | AB75: 08 | AC75: 02 | AD75: CONDOROMA | AE75: =CONCATENATE(AB75,AC75) -> 0802 | AF75: =CONCATENATE(AB75,AC75," - ",AD75) -> 0802 - CONDOROMA
N76: 5 | O76: 000002528 | P76: CCATCCA | Q76: 01 | R76: 15 | S76: 12 | T76: 05 | U76: 0115 | V76: 000002528 - CCATCCA | AB76: 08 | AC76: 03 | AD76: COPORAQUE | AE76: 0803 | AF76: 0803 - COPORAQUE
N77: 6 | O77: 000002529 | P77: KCAURY | Q77: 01 | R77: 15 | S77: 12 | T77: 05 | U77: 0115 | V77: 000002529 - KCAURY | AB77: 08 | AC77: 04 | AD77: OCORURO | AE77: 0804 | AF77: 0804 - OCORURO
N78: 7 | O78: 000002535 | P78: MARCAPATA | Q78: 01 | R78: 15 | S78: 12 | T78: 09 | U78: 0115 | V78: 000002535 - MARCAPATA | AB78: 08 | AC78: 05 | AD78: PALLPATA | AE78: 0805 | AF78: 0805 - PALLPATA
N79: 9 | O79: 000002536 | P79: OCONGATE | Q79: 01 | R79: 15 | S79: 12 | T79: 10 | U79: 0115 | V79: 000002536 - OCONGATE | AB79: 08 | AC79: 06 | AD79: PICHIGUA | AE79: 0806 | AF79: 0806 - PICHIGUA
N80: 10 | O80: 000006977 | P80: TINKI | Q80: 01 | R80: 15 | S80: 12 | T80: 10 | U80: =CONCATENATE(Q80,R80) -> 0115 | V80: =CONCATENATE(O80," - ",P80) -> 000006977 - TINKI | AB80: 08 | AC80: 07 | AD80: SUYCKUTAMBO | AE80: 0807 | AF80: 0807 - SUYCKUTAMBO
N81: 11 | O81: 000007110 | P81: INCACANCHA | Q81: 01 | R81: 15 | S81: 12 | T81: 09 | U81: 0115 | V81: 000007110 - INCACANCHA | AB81: 08 | AC81: 08 | AD81: ALTO PICHIGUA | AE81: 0808 | AF81: 0808 - ALTO PICHIGUA
N82: 12 | O82: 000012931 | P82: CHICHINA | Q82: 01 | R82: 15 | S82: 12 | T82: 05 | U82: 0115 | V82: 000012931 - CHICHINA | AB82: 09 | AC82: 00 | AD82: (All) | AE82: 0900 | AF82: 0900 - (All)
N83: 13 | O83: 000016335 | P83: CCAPANA | Q83: 01 | R83: 15 | S83: 12 | T83: 05 | U83: 0115 | V83: 000016335 - CCAPANA | AB83: 09 | AC83: 01 | AD83: SANTA ANA | AE83: 0901 | AF83: 0901 - SANTA ANA
N84: 0 | O84: 000000000 | P84: (All) | Q84: 01 | R84: 16 | U84: 0116 | V84: 000000000 - (All) | AB84: 09 | AC84: 02 | AD84: ECHARATE | AE84: 0902 | AF84: 0902 - ECHARATE
N85: 1 | O85: 000002300 | P85: SAN JERONIMO | Q85: 01 | R85: 16 | S85: 01 | T85: 04 | U85: 0116 | V85: 000002300 - SAN JERONIMO | AB85: 09 | AC85: 03 | AD85: HUAYOPATA | AE85: 0903 | AF85: 0903 - HUAYOPATA
N86: 2 | O86: 000002301 | P86: SAN SEBASTIAN | Q86: 01 | R86: 16 | S86: 01 | T86: 05 | U86: 0116 | V86: 000002301 - SAN SEBASTIAN | AB86: 09 | AC86: 04 | AD86: MARANURA | AE86: 0904 | AF86: 0904 - MARANURA
N87: 3 | O87: 000002303 | P87: SANTA ROSA | Q87: 01 | R87: 16 | S87: 01 | T87: 05 | U87: 0116 | V87: 000002303 - SANTA ROSA | AB87: 09 | AC87: 05 | AD87: OCOBAMBA | AE87: 0905 | AF87: 0905 - OCOBAMBA
N88: 4 | O88: 000002314 | P88: SAYLLA | Q88: 01 | R88: 16 | S88: 01 | T88: 07 | U88: 0116 | V88: 000002314 - SAYLLA | AB88: 09 | AC88: 06 | AD88: QUELLOUNO | AE88: 0906 | AF88: 0906 - QUELLOUNO
N89: 5 | O89: 000002323 | P89: RONDOCAN | Q89: 01 | R89: 16 | S89: 02 | T89: 06 | U89: 0116 | V89: 000002323 - RONDOCAN | AB89: 09 | AC89: 07 | AD89: KIMBIRI | AE89: 0907 | AF89: 0907 - KIMBIRI
N90: 6 | O90: 000007699 | P90: CONCHACALLE | Q90: 01 | R90: 16 | S90: 01 | T90: 04 | U90: 0116 | V90: 000007699 - CONCHACALLE | AB90: 09 | AC90: 08 | AD90: SANTA TERESA | AE90: 0908 | AF90: 0908 - SANTA TERESA
N91: 7 | O91: 000010065 | P91: SAN SEBASTIAN ESSALUD | Q91: 01 | R91: 16 | S91: 01 | T91: 05 | U91: 0116 | V91: 000010065 - SAN SEBASTIAN ESSALUD | AB91: 09 | AC91: 09 | AD91: VILCABAMBA | AE91: 0909 | AF91: 0909 - VILCABAMBA
N92: 8 | O92: 000011743 | P92: POLICIAL "SANTA ROSA" CUSCO | Q92: 01 | R92: 16 | S92: 01 | T92: 05 | U92: 0116 | V92: 000011743 - POLICIAL "SANTA ROSA" CUSCO | AB92: 09 | AC92: 10 | AD92: PICHARI | AE92: 0910 | AF92: 0910 - PICHARI
N93: 9 | O93: 000018926 | P93: ESTABLECIMIENTO PENITENCIARIO CUSCO VARONES | Q93: 01 | R93: 16 | S93: 01 | T93: 04 | U93: 0116 | V93: 000018926 - ESTABLECIMIENTO PENITENCIARIO CUSCO VARONES | AB93: 09 | AC93: 11 | AD93: INKAWASI | AE93: 0911 | AF93: 0911 - INKAWASI
N94: 10 | O94: 000021187 | P94: ESTABLECIMIENTO PENITENCIARIO CUSCO MUJERES | Q94: 01 | R94: 16 | S94: 01 | T94: 04 | U94: 0116 | V94: 000021187 - ESTABLECIMIENTO PENITENCIARIO CUSCO MUJERES | AB94: 09 | AC94: 12 | AD94: VILLA VIRGEN | AE94: 0912 | AF94: 0912 - VILLA VIRGEN
N95: 0 | O95: 000026181 | P95: MENTAL SAN SEBASTIAN | Q95: 01 | R95: 16 | S95: 01 | T95: 05 | U95: 0116 | V95: 000026181 - MENTAL SAN SEBASTIAN | AB95: 09 | AC95: 13 | AD95: VILLA KINTIARINA | AE95: 0913 | AF95: 0913 - VILLA KINTIARINA
N96: 1 | O96: 000030727 | P96: PATRÓN SAN SEBASTIAN | Q96: 01 | R96: 16 | S96: 01 | T96: 04 | U96: 0116 | V96: 000030727 - PATRÓN SAN SEBASTIAN | AB96: 09 | AC96: 14 | AD96: MEGANTONI | AE96: 0914 | AF96: 0914 - MEGANTONI
N97: 2 | O97: 999999999 | P97: (All) | Q97: 01 | R97: 99 | U97: 0199 | V97: 999999999 - (All) | AB97: 09 | AC97: 15 | AD97: KUMPIRUSHIATO | AE97: 0915 | AF97: 0915 - KUMPIRUSHIATO
N98: 3 | O98: 000000000 | P98: (All) | Q98: 02 | R98: 01 | U98: 0201 | V98: 000000000 - (All) | AB98: 09 | AC98: 16 | AD98: CIELO PUNCO | AE98: 0916 | AF98: 0916 - CIELO PUNCO
O99: 000002292 | P99: INDEPENDENCIA | Q99: 02 | R99: 01 | S99: 01 | T99: 01 | U99: 0201 | V99: 000002292 - INDEPENDENCIA | AB99: 09 | AC99: 17 | AD99: MANITEA | AE99: 0917 | AF99: 0917 - MANITEA
N100: 4 | O100: 000002297 | P100: CCORCCA | Q100: 02 | R100: 01 | S100: 01 | T100: 02 | U100: 0201 | V100: 000002297 - CCORCCA | AB100: 09 | AC100: 18 | AD100: UNION ASHANINKA | AE100: 0918 | AF100: 0918 - UNION ASHANINKA
N101: 5 | O101: 000002306 | P101: BELEMPAMPA | Q101: 02 | R101: 01 | S101: 01 | T101: 06 | U101: 0201 | V101: 000002306 - BELEMPAMPA | AB101: 09 | AC101: 00 | AD101: (All) | AE101: 0900 | AF101: 0900 - (All)
N102: 6 | O102: 000002308 | P102: ZARZUELA ALTA | Q102: 02 | R102: 01 | S102: 01 | T102: 06 | U102: 0201 | V102: 000002308 - ZARZUELA ALTA | AB102: 10 | AC102: 01 | AD102: PARURO | AE102: 1001 | AF102: 1001 - PARURO
O103: 000002309 | P103: DIGNIDAD NACIONAL | Q103: 02 | R103: 01 | S103: 01 | T103: 06 | U103: 0201 | V103: 000002309 - DIGNIDAD NACIONAL | AB103: 10 | AC103: 02 | AD103: ACCHA | AE103: 1002 | AF103: 1002 - ACCHA
N104: 7 | O104: 000002313 | P104: OCCOPATA | Q104: 02 | R104: 01 | S104: 01 | T104: 06 | U104: 0201 | V104: 000002313 - OCCOPATA | AB104: 10 | AC104: 03 | AD104: CCAPI | AE104: 1003 | AF104: 1003 - CCAPI
N105: 8 | O105: 000010067 | P105: C.M. SANTIAGO ESSALUD | Q105: 02 | R105: 01 | S105: 01 | T105: 06 | U105: 0201 | V105: 000010067 - C.M. SANTIAGO ESSALUD | AB105: 10 | AC105: 04 | AD105: COLCHA | AE105: 1004 | AF105: 1004 - COLCHA
N106: 9 | O106: 000010920 | P106: QUINTA BRIGADA DE MONTAÑA | Q106: 02 | R106: 01 | S106: 01 | T106: 06 | U106: 0201 | V106: 000010920 - QUINTA BRIGADA DE MONTAÑA | AB106: 10 | AC106: 05 | AD106: HUANOQUITE | AE106: 1005 | AF106: 1005 - HUANOQUITE
N107: 10 | O107: 000026182 | P107: MENTAL SANTIAGO | Q107: 02 | R107: 01 | S107: 01 | T107: 06 | U107: 0201 | V107: 000026182 - MENTAL SANTIAGO | AB107: 10 | AC107: 06 | AD107: OMACHA | AE107: 1006 | AF107: 1006 - OMACHA
N108: 11 | O108: 000000000 | P108: (All) | Q108: 02 | R108: 02 | U108: 0202 | V108: 000000000 - (All) | AB108: 10 | AC108: 07 | AD108: PACCARITAMBO | AE108: 1007 | AF108: 1007 - PACCARITAMBO
N109: 0 | O109: 000002302 | P109: CCORAO | Q109: 02 | R109: 02 | S109: 01 | T109: 05 | U109: 0202 | V109: 000002302 - CCORAO | AB109: 10 | AC109: 08 | AD109: PILLPINTO | AE109: 1008 | AF109: 1008 - PILLPINTO
N110: 1 | O110: 000002307 | P110: MANCO CAPAC | Q110: 02 | R110: 02 | S110: 01 | T110: 06 | U110: 0202 | V110: 000002307 - MANCO CAPAC | AB110: 10 | AC110: 09 | AD110: YAURISQUE | AE110: 1009 | AF110: 1009 - YAURISQUE
O111: 000002310 | P111: CHOCCO | Q111: 02 | R111: 02 | S111: 01 | T111: 06 | U111: 0202 | V111: 000002310 - CHOCCO | AB111: 11 | AC111: 00 | AD111: (All) | AE111: 1100 | AF111: 1100 - (All)
O112: 000002315 | P112: WANCHAQ | Q112: 02 | R112: 02 | S112: 01 | T112: 08 | U112: 0202 | V112: 000002315 - WANCHAQ | AB112: 11 | AC112: 01 | AD112: PAUCARTAMBO | AE112: 1101 | AF112: 1101 - PAUCARTAMBO
N113: 2 | O113: 000002316 | P113: TTIO | Q113: 02 | R113: 02 | S113: 01 | T113: 08 | U113: 0202 | V113: 000002316 - TTIO | AB113: 11 | AC113: 02 | AD113: CAICAY | AE113: 1102 | AF113: 1102 - CAICAY
N114: 3 | O114: 000010041 | P114: ADOLFO GUEVARA VELASCO | Q114: 02 | R114: 02 | S114: 01 | T114: 08 | U114: 0202 | V114: 000010041 - ADOLFO GUEVARA VELASCO | AB114: 11 | AC114: 03 | AD114: CHALLABAMBA | AE114: 1103 | AF114: 1103 - CHALLABAMBA
N115: 4 | O115: 000026183 | P115: METROPOLITANO | Q115: 02 | R115: 02 | S115: 01 | T115: 08 | U115: 0202 | V115: 000026183 - METROPOLITANO | AB115: 11 | AC115: 04 | AD115: COLQUEPATA | AE115: 1104 | AF115: 1104 - COLQUEPATA
N116: 5 | O116: 000030730 | P116: PATRON SANTIAGO | Q116: 02 | R116: 02 | S116: 01 | T116: 08 | U116: 0202 | V116: 000030730 - PATRON SANTIAGO | AB116: 11 | AC116: 05 | AD116: HUANCARANI | AE116: 1105 | AF116: 1105 - HUANCARANI
N117: 6 | O117: 000000000 | P117: (All) | Q117: 02 | R117: 03 | U117: 0203 | V117: 000000000 - (All) | AB117: 11 | AC117: 06 | AD117: KOSÑIPATA | AE117: 1106 | AF117: 1106 - KOSÑIPATA
N118: 7 | O118: 000002326 | P118: ANTA | Q118: 02 | R118: 03 | S118: 03 | T118: 01 | U118: 0203 | V118: 000002326 - ANTA | AB118: 12 | AC118: 00 | AD118: (All) | AE118: 1200 | AF118: 1200 - (All)
N119: 0 | O119: 000002327 | P119: CHACAN | Q119: 02 | R119: 03 | S119: 03 | T119: 01 | U119: 0203 | V119: 000002327 - CHACAN | AB119: 12 | AC119: 01 | AD119: URCOS | AE119: 1201 | AF119: 1201 - URCOS
N120: 1 | O120: 000002328 | P120: COMPONE | Q120: 02 | R120: 03 | S120: 03 | T120: 01 | U120: 0203 | V120: 000002328 - COMPONE | AB120: 12 | AC120: 02 | AD120: ANDAHUAYLILLAS | AE120: 1202 | AF120: 1202 - ANDAHUAYLILLAS
N121: 2 | O121: 000002329 | P121: CONCHACALLA | Q121: 02 | R121: 03 | S121: 03 | T121: 01 | U121: 0203 | V121: 000002329 - CONCHACALLA | AB121: 12 | AC121: 03 | AD121: CAMANTI | AE121: 1203 | AF121: 1203 - CAMANTI
N122: 3 | O122: 000002330 | P122: ANCAHUASI | Q122: 02 | R122: 03 | S122: 03 | T122: 02 | U122: 0203 | V122: 000002330 - ANCAHUASI | AB122: 12 | AC122: 04 | AD122: CCARHUAYO | AE122: 1204 | AF122: 1204 - CCARHUAYO
N123: 4 | O123: 000002331 | P123: CACHIMAYO | Q123: 02 | R123: 03 | S123: 03 | T123: 03 | U123: 0203 | V123: 000002331 - CACHIMAYO | AB123: 12 | AC123: 05 | AD123: CCATCA | AE123: 1205 | AF123: 1205 - CCATCA
N124: 5 | O124: 000002332 | P124: CHINCHAYPUJIO | Q124: 02 | R124: 03 | S124: 03 | T124: 04 | U124: 0203 | V124: 000002332 - CHINCHAYPUJIO | AB124: 12 | AC124: 06 | AD124: CUSIPATA | AE124: 1206 | AF124: 1206 - CUSIPATA
N125: 6 | O125: 000002333 | P125: HUAROCONDO | Q125: 02 | R125: 03 | S125: 03 | T125: 05 | U125: 0203 | V125: 000002333 - HUAROCONDO | AB125: 12 | AC125: 07 | AD125: HUARO | AE125: 1207 | AF125: 1207 - HUARO
N126: 7 | O126: 000002334 | P126: HUAYLLACOCHA | Q126: 02 | R126: 03 | S126: 03 | T126: 05 | U126: 0203 | V126: 000002334 - HUAYLLACOCHA | AB126: 12 | AC126: 08 | AD126: LUCRE | AE126: 1208 | AF126: 1208 - LUCRE
O127: 000002339 | P127: PUCYURA ANTA | Q127: 02 | R127: 03 | S127: 03 | T127: 08 | U127: 0203 | V127: 000002339 - PUCYURA ANTA | AB127: 12 | AC127: 09 | AD127: MARCAPATA | AE127: 1209 | AF127: 1209 - MARCAPATA
N128: 8 | O128: 000002340 | P128: ZURITE | Q128: 02 | R128: 03 | S128: 03 | T128: 09 | U128: 0203 | V128: 000002340 - ZURITE | AB128: 12 | AC128: 10 | AD128: OCONGATE | AE128: 1210 | AF128: 1210 - OCONGATE
N129: 9 | O129: 000006972 | P129: PANTIPATA | Q129: 02 | R129: 03 | S129: 03 | T129: 04 | U129: 0203 | V129: 000006972 - PANTIPATA | AB129: 12 | AC129: 11 | AD129: OROPESA | AE129: 1211 | AF129: 1211 - OROPESA
N130: 10 | O130: 000027790 | P130: MENTAL COMUNITARIO ANTA | Q130: 02 | R130: 03 | S130: 03 | T130: 01 | U130: 0203 | V130: 000027790 - MENTAL COMUNITARIO ANTA | AB130: 12 | AC130: 12 | AD130: QUIQUIJANA | AE130: 1212 | AF130: 1212 - QUIQUIJANA
O131: 000029514 | P131: ESSALUD ANTA | Q131: 02 | R131: 03 | S131: 03 | T131: 01 | U131: 0203 | V131: 000029514 - ESSALUD ANTA | AB131: 13 | AC131: 00 | AD131: (All) | AE131: 1300 | AF131: 1300 - (All)
O132: 000000000 | P132: (All) | Q132: 02 | R132: 04 | U132: 0204 | V132: 000000000 - (All) | AB132: 13 | AC132: 01 | AD132: URUBAMBA | AE132: 1301 | AF132: 1301 - URUBAMBA
O133: 000002336 | P133: LIMATAMBO | Q133: 02 | R133: 04 | S133: 03 | T133: 06 | U133: 0204 | V133: 000002336 - LIMATAMBO | AB133: 13 | AC133: 02 | AD133: CHINCHERO | AE133: 1302 | AF133: 1302 - CHINCHERO
O134: 000002337 | P134: PAMPACONGA | Q134: 02 | R134: 04 | S134: 03 | T134: 06 | U134: 0204 | V134: 000002337 - PAMPACONGA | AB134: 13 | AC134: 03 | AD134: HUAYLLABAMBA | AE134: 1303 | AF134: 1303 - HUAYLLABAMBA
O135: 000002338 | P135: MOLLEPATA | Q135: 02 | R135: 04 | S135: 03 | T135: 07 | U135: 0204 | V135: 000002338 - MOLLEPATA | AB135: 13 | AC135: 04 | AD135: MACHUPICCHU | AE135: 1304 | AF135: 1304 - MACHUPICCHU
O136: 000010761 | P136: URATARI | Q136: 02 | R136: 04 | S136: 03 | T136: 06 | U136: 0204 | V136: 000010761 - URATARI | AB136: 13 | AC136: 05 | AD136: MARAS | AE136: 1305 | AF136: 1305 - MARAS
O137: 000021061 | P137: HUAMANPATA | Q137: 02 | R137: 04 | S137: 03 | T137: 07 | U137: 0204 | V137: 000021061 - HUAMANPATA | AB137: 13 | AC137: 06 | AD137: OLLANTAYTAMBO | AE137: 1306 | AF137: 1306 - OLLANTAYTAMBO
O138: 000000000 | P138: (All) | Q138: 02 | R138: 05 | U138: 0205 | V138: 000000000 - (All) | AB138: 13 | AC138: 07 | AD138: YUCAY | AE138: =CONCATENATE(AB138,AC138) -> 1307 | AF138: 1307 - YUCAY
O139: 000002343 | P139: COYA | Q139: 02 | R139: 05 | S139: 04 | T139: 02 | U139: 0205 | V139: 000002343 - COYA | AB139: 00 | AC139: 00 | AD139: (All) | AE139: =CONCATENATE(AB139,AC139) -> 0000 | AF139: 0000 - (All)
O140: 000002344 | P140: LAMAY | Q140: 02 | R140: 05 | S140: 04 | T140: 03 | U140: 0205 | V140: 000002344 - LAMAY
O141: 000002348 | P141: PISAC | Q141: 02 | R141: 05 | S141: 04 | T141: 05 | U141: 0205 | V141: 000002348 - PISAC
O142: 000002349 | P142: CUYO CHICO | Q142: 02 | R142: 05 | S142: 04 | T142: 05 | U142: 0205 | V142: 000002349 - CUYO CHICO
O143: 000002350 | P143: CUYO GRANDE | Q143: 02 | R143: 05 | S143: 04 | T143: 05 | U143: 0205 | V143: 000002350 - CUYO GRANDE
O144: 000002351 | P144: QUELLO QUELLO | Q144: 02 | R144: 05 | S144: 04 | T144: 05 | U144: 0205 | V144: 000002351 - QUELLO QUELLO
O145: 000002352 | P145: SAN SALVADOR | Q145: 02 | R145: 05 | S145: 04 | T145: 06 | U145: 0205 | V145: 000002352 - SAN SALVADOR
O146: 000002353 | P146: TARAY | Q146: 02 | R146: 05 | S146: 04 | T146: 07 | U146: 0205 | V146: 000002353 - TARAY
O147: 000002354 | P147: HUANCALLE | Q147: 02 | R147: 05 | S147: 04 | T147: 07 | U147: 0205 | V147: 000002354 - HUANCALLE
O148: 000006970 | P148: TIRACANCHA | Q148: 02 | R148: 05 | S148: 04 | T148: 06 | U148: 0205 | V148: 000006970 - TIRACANCHA
O149: 000006975 | P149: SAYLLAFAYA | Q149: 02 | R149: 05 | S149: 04 | T149: 03 | U149: 0205 | V149: 000006975 - SAYLLAFAYA
O150: 000007145 | P150: HUAMA | Q150: 02 | R150: 05 | S150: 04 | T150: 03 | U150: =CONCATENATE(Q150,R150) -> 0205 | V150: =CONCATENATE(O150," - ",P150) -> 000007145 - HUAMA
O151: 000007146 | P151: POQUES | Q151: 02 | R151: 05 | S151: 04 | T151: 03 | U151: 0205 | V151: 000007146 - POQUES
O152: 000025368 | P152: HUARQUI | Q152: 02 | R152: 05 | S152: 04 | T152: 03 | U152: 0205 | V152: 000025368 - HUARQUI
O153: 000000000 | P153: (All) | Q153: 02 | R153: 06 | U153: 0206 | V153: 000000000 - (All)
O154: 000002341 | P154: CALCA | Q154: 02 | R154: 06 | S154: 04 | T154: 01 | U154: 0206 | V154: 000002341 - CALCA
O155: 000002342 | P155: AMPARAES | Q155: 02 | R155: 06 | S155: 04 | T155: 04 | U155: 0206 | V155: 000002342 - AMPARAES
O156: 000002345 | P156: CCACHIN | Q156: 02 | R156: 06 | S156: 04 | T156: 04 | U156: 0206 | V156: 000002345 - CCACHIN
O157: 000002346 | P157: CHOQUECANCHA | Q157: 02 | R157: 06 | S157: 04 | T157: 04 | U157: 0206 | V157: 000002346 - CHOQUECANCHA
O158: 000002347 | P158: LARES | Q158: 02 | R158: 06 | S158: 04 | T158: 04 | U158: 0206 | V158: 000002347 - LARES
O159: 000002361 | P159: SUYO | Q159: 02 | R159: 06 | S159: 04 | T159: 04 | U159: 0206 | V159: 000002361 - SUYO
O160: 000002515 | P160: PAROBAMBA | Q160: 02 | R160: 06 | S160: 11 | T160: 03 | U160: 0206 | V160: 000002515 - PAROBAMBA
O161: 000007143 | P161: OTOCANI | Q161: 02 | R161: 06 | S161: 11 | T161: 03 | U161: 0206 | V161: 000007143 - OTOCANI
O162: 000007144 | P162: PATABAMBA | Q162: 02 | R162: 06 | S162: 04 | T162: 07 | U162: 0206 | V162: 000007144 - PATABAMBA
O163: 000010069 | P163: ESSALUD CALCA | Q163: 02 | R163: 06 | S163: 04 | T163: 01 | U163: 0206 | V163: 000010069 - ESSALUD CALCA
O164: 000010759 | P164: HUARAN | Q164: 02 | R164: 06 | S164: 04 | T164: 01 | U164: 0206 | V164: 000010759 - HUARAN
O165: 000010762 | P165: ACCHA ALTA - PAMPALLACTA | Q165: 02 | R165: 06 | S165: 04 | T165: 01 | U165: 0206 | V165: 000010762 - ACCHA ALTA - PAMPALLACTA
O166: 000026273 | P166: MENTAL COMUNITARIO VIRGEN ASUNTA DE CALCA | Q166: 02 | R166: 06 | S166: 04 | T166: 01 | U166: 0206 | V166: 000026273 - MENTAL COMUNITARIO VIRGEN ASUNTA DE CALCA
O167: 000000000 | P167: (All) | Q167: 02 | R167: 07 | U167: 0207 | V167: 000000000 - (All)
O168: 000002540 | P168: URUBAMBA | Q168: 02 | R168: 07 | S168: 13 | T168: 01 | U168: 0207 | V168: 000002540 - URUBAMBA
O169: 000002541 | P169: YANAHUARA | Q169: 02 | R169: 07 | S169: 13 | T169: 01 | U169: 0207 | V169: 000002541 - YANAHUARA
O170: 000002543 | P170: CHINCHERO | Q170: 02 | R170: 07 | S170: 13 | T170: 02 | U170: 0207 | V170: 000002543 - CHINCHERO
O171: 000002544 | P171: OCCOTUAN | Q171: 02 | R171: 07 | S171: 13 | T171: 02 | U171: 0207 | V171: 000002544 - OCCOTUAN
O172: 000002545 | P172: HUAYLLABAMBA | Q172: 02 | R172: 07 | S172: 13 | T172: 03 | U172: 0207 | V172: 000002545 - HUAYLLABAMBA
O173: 000002546 | P173: MACHUPICCHU | Q173: 02 | R173: 07 | S173: 13 | T173: 04 | U173: 0207 | V173: 000002546 - MACHUPICCHU
O174: 000002547 | P174: COLLPANI | Q174: 02 | R174: 07 | S174: 13 | T174: 04 | U174: 0207 | V174: 000002547 - COLLPANI
O175: 000002548 | P175: MARAS | Q175: 02 | R175: 07 | S175: 13 | T175: 05 | U175: 0207 | V175: 000002548 - MARAS
O176: 000002549 | P176: OLLANTAYTAMBO | Q176: 02 | R176: 07 | S176: 13 | T176: 06 | U176: 0207 | V176: 000002549 - OLLANTAYTAMBO
O177: 000002550 | P177: CHILLCA | Q177: 02 | R177: 07 | S177: 13 | T177: 06 | U177: 0207 | V177: 000002550 - CHILLCA
O178: 000002551 | P178: YUCAY | Q178: 02 | R178: 07 | S178: 13 | T178: 07 | U178: 0207 | V178: 000002551 - YUCAY
O179: 000006974 | P179: CAMINO INCA HUAYLLABAMBA | Q179: 02 | R179: 07 | S179: 13 | T179: 04 | U179: 0207 | V179: 000006974 - CAMINO INCA HUAYLLABAMBA
O180: 000010060 | P180: CAS URUBAMBA -ESSALUD | Q180: 02 | R180: 07 | S180: 13 | T180: 01 | U180: 0207 | V180: 000010060 - CAS URUBAMBA -ESSALUD
O181: 000010073 | P181: MACHU PICCHU - ESSALUD | Q181: 02 | R181: 07 | S181: 13 | T181: 04 | U181: 0207 | V181: 000010073 - MACHU PICCHU - ESSALUD
O182: 000010758 | P182: CRUZPATA | Q182: 02 | R182: 07 | S182: 13 | T182: 05 | U182: 0207 | V182: 000010758 - CRUZPATA
O183: 000010760 | P183: PATACANCHA | Q183: 02 | R183: 07 | S183: 13 | T183: 06 | U183: 0207 | V183: 000010760 - PATACANCHA
O184: 000030666 | P184: MENTAL COMUNITARIO URUBAMBA | Q184: 02 | R184: 07 | S184: 13 | T184: 01 | U184: 0207 | V184: 000030666 - MENTAL COMUNITARIO URUBAMBA
O185: 000000000 | P185: (All) | Q185: 02 | R185: 08 | U185: 0208 | V185: 000000000 - (All)
O186: 000002355 | P186: LA QUEBRADA | Q186: 02 | R186: 08 | S186: 04 | T186: 08 | U186: 0208 | V186: 000002355 - LA QUEBRADA
O187: 000002356 | P187: CCORIMAYO | Q187: 02 | R187: 08 | S187: 04 | T187: 08 | U187: 0208 | V187: 000002356 - CCORIMAYO
O188: 000002357 | P188: COLCCA YANATILE | Q188: 02 | R188: 08 | S188: 04 | T188: 08 | U188: 0208 | V188: 000002357 - COLCCA YANATILE
O189: 000002358 | P189: MUYUPAY | Q189: 02 | R189: 08 | S189: 04 | T189: 08 | U189: 0208 | V189: 000002358 - MUYUPAY
O190: 000002359 | P190: PUTUCUSI | Q190: 02 | R190: 08 | S190: 04 | T190: 08 | U190: 0208 | V190: 000002359 - PUTUCUSI
O191: 000002360 | P191: QUESQUENTO | Q191: 02 | R191: 08 | S191: 04 | T191: 08 | U191: 0208 | V191: 000002360 - QUESQUENTO
O192: 000002362 | P192: HUACHIBAMBA | Q192: 02 | R192: 08 | S192: 04 | T192: 08 | U192: 0208 | V192: 000002362 - HUACHIBAMBA
O193: 000002464 | P193: VERSALLES | Q193: 02 | R193: 08 | S193: 09 | T193: 05 | U193: 0208 | V193: 000002464 - VERSALLES
O194: 000002467 | P194: PUENTE SANTIAGO | Q194: 02 | R194: 08 | S194: 09 | T194: 06 | U194: 0208 | V194: 000002467 - PUENTE SANTIAGO
O195: 000006971 | P195: COMBAPATA YANATILE | Q195: 02 | R195: 08 | S195: 04 | T195: 08 | U195: 0208 | V195: 000006971 - COMBAPATA YANATILE
O196: 000006973 | P196: BELLAVISTA | Q196: 02 | R196: 08 | S196: 04 | T196: 08 | U196: 0208 | V196: 000006973 - BELLAVISTA
O197: 000007142 | P197: CHANCAMAYO | Q197: 02 | R197: 08 | S197: 04 | T197: 08 | U197: 0208 | V197: 000007142 - CHANCAMAYO
O198: 000000000 | P198: (All) | Q198: 02 | R198: 09 | U198: 0209 | V198: 000000000 - (All)
O199: 000002290 | P199: SAN PEDRO CUSCO | Q199: 02 | R199: 09 | S199: 01 | T199: 01 | U199: 0209 | V199: 000002290 - SAN PEDRO CUSCO
O200: 000002291 | P200: SIETE CUARTONES | Q200: 02 | R200: 09 | S200: 01 | T200: 01 | U200: 0209 | V200: 000002291 - SIETE CUARTONES
O201: 000002293 | P201: MIRAFLORES | Q201: 02 | R201: 09 | S201: 01 | T201: 01 | U201: 0209 | V201: 000002293 - MIRAFLORES
O202: 000002294 | P202: PICCHU LA RINCONADA | Q202: 02 | R202: 09 | S202: 01 | T202: 01 | U202: 0209 | V202: 000002294 - PICCHU LA RINCONADA
O203: 000002295 | P203: BUENA VISTA | Q203: 02 | R203: 09 | S203: 01 | T203: 01 | U203: 0209 | V203: 000002295 - BUENA VISTA
O204: 000002299 | P204: POROY | Q204: 02 | R204: 09 | S204: 01 | T204: 03 | U204: 0209 | V204: 000002299 - POROY
O205: 999999999 | P205: (All) | Q205: 02 | R205: 99 | U205: 0299 | V205: 999999999 - (All)
O206: 000002421 | P206: QUILLABAMBA | Q206: 03 | R206: 00 | S206: 09 | T206: 01 | U206: 0300 | V206: 000002421 - QUILLABAMBA
O207: 000000000 | P207: (All) | Q207: 03 | R207: 01 | U207: 0301 | V207: 000000000 - (All)
O208: 000002422 | P208: HUAYANAY | Q208: 03 | R208: 01 | S208: 09 | T208: 01 | U208: 0301 | V208: 000002422 - HUAYANAY
... 236 more rows
